Publisher Label,Publisher URI,"Supplier","Invoice ","Amount (£)","Purpose","Transaction Number","Payment Date","Organisational Unit","Cost Centre(T)","Internal category number"
"Wolverhampton City Council","http://opendatacommunities.org/id/metropolitan-district-council/wolverhampton","Access Tail Lift Services Limited","20455","57.44","Services - Professional Fees","190281929","04/11/2016","Fleet Services","Fleet Management","R4400"
"Wolverhampton City Council","http://opendatacommunities.org/id/metropolitan-district-council/wolverhampton","Access Tail Lift Services Limited","20455","57.44","Services - Professional Fees","190281929","04/11/2016","Fleet Services","Fleet Management","R4400"
"Wolverhampton City Council","http://opendatacommunities.org/id/metropolitan-district-council/wolverhampton","Access Tail Lift Services Limited","20455","57.44","Services - Professional Fees","190281929","04/11/2016","Fleet Services","Fleet Management","R4400"
"Wolverhampton City Council","http://opendatacommunities.org/id/metropolitan-district-council/wolverhampton","Access Tail Lift Services Limited","20455","57.44","Services - Professional Fees","190281929","04/11/2016","Fleet Services","Fleet Management","R4400"
"Wolverhampton City Council","http://opendatacommunities.org/id/metropolitan-district-council/wolverhampton","Access Tail Lift Services Limited","20455","57.44","Services - Professional Fees","190281929","04/11/2016","Fleet Services","Fleet Management","R4400"
"Wolverhampton City Council","http://opendatacommunities.org/id/metropolitan-district-council/wolverhampton","Access Tail Lift Services Limited","20455","57.44","Services - Professional Fees","190281929","04/11/2016","Fleet Services","Fleet Management","R4400"
"Wolverhampton City Council","http://opendatacommunities.org/id/metropolitan-district-council/wolverhampton","Access Tail Lift Services Limited","20455","57.44","Services - Professional Fees","190281929","04/11/2016","Fleet Services","Fleet Management","R4400"
"Wolverhampton City Council","http://opendatacommunities.org/id/metropolitan-district-council/wolverhampton","Access Tail Lift Services Limited","20455","57.44","Services - Professional Fees","190281929","04/11/2016","Fleet Services","Fleet Management","R4400"
"Wolverhampton City Council","http://opendatacommunities.org/id/metropolitan-district-council/wolverhampton","Access Tail Lift Services Limited","20455","57.44","Services - Professional Fees","190281929","04/11/2016","Fleet Services","Fleet Management","R4400"
"Wolverhampton City Council","http://opendatacommunities.org/id/metropolitan-district-council/wolverhampton","Access Tail Lift Services Limited","20455","57.44","Services - Professional Fees","190281929","04/11/2016","Fleet Services","Fleet Management","R4400"
"Wolverhampton City Council","http://opendatacommunities.org/id/metropolitan-district-council/wolverhampton","Access Tail Lift Services Limited","20463","57.44","Services - Professional Fees","190281930","04/11/2016","Fleet Services","Fleet Management","R4400"
"Wolverhampton City Council","http://opendatacommunities.org/id/metropolitan-district-council/wolverhampton","Access Tail Lift Services Limited","20463","57.44","Services - Professional Fees","190281930","04/11/2016","Fleet Services","Fleet Management","R4400"
"Wolverhampton City Council","http://opendatacommunities.org/id/metropolitan-district-council/wolverhampton","Access Tail Lift Services Limited","20466","57.44","Services - Professional Fees","190281931","04/11/2016","Fleet Services","Fleet Management","R4400"
"Wolverhampton City Council","http://opendatacommunities.org/id/metropolitan-district-council/wolverhampton","Access Tail Lift Services Limited","20466","57.44","Services - Professional Fees","190281931","04/11/2016","Fleet Services","Fleet Management","R4400"
"Wolverhampton City Council","http://opendatacommunities.org/id/metropolitan-district-council/wolverhampton","Access Tail Lift Services Limited","20466","57.44","Services - Professional Fees","190281931","04/11/2016","Fleet Services","Fleet Management","R4400"
"Wolverhampton City Council","http://opendatacommunities.org/id/metropolitan-district-council/wolverhampton","Access Tail Lift Services Limited","20466","57.44","Services - Professional Fees","190281931","04/11/2016","Fleet Services","Fleet Management","R4400"
"Wolverhampton City Council","http://opendatacommunities.org/id/metropolitan-district-council/wolverhampton","Access Tail Lift Services Limited","20466","57.44","Services - Professional Fees","190281931","04/11/2016","Fleet Services","Fleet Management","R4400"
"Wolverhampton City Council","http://opendatacommunities.org/id/metropolitan-district-council/wolverhampton","Access Tail Lift Services Limited","20466","57.44","Services - Professional Fees","190281931","04/11/2016","Fleet Services","Fleet Management","R4400"
"Wolverhampton City Council","http://opendatacommunities.org/id/metropolitan-district-council/wolverhampton","Access Tail Lift Services Limited","20463","57.44","Services - Professional Fees","190281930","04/11/2016","Fleet Services","Fleet Management","R4400"
"Wolverhampton City Council","http://opendatacommunities.org/id/metropolitan-district-council/wolverhampton","Access Tail Lift Services Limited","20463","57.44","Services - Professional Fees","190281930","04/11/2016","Fleet Services","Fleet Management","R4400"
"Wolverhampton City Council","http://opendatacommunities.org/id/metropolitan-district-council/wolverhampton","Access Tail Lift Services Limited","20466","57.44","Services - Professional Fees","190281931","04/11/2016","Fleet Services","Fleet Management","R4400"
"Wolverhampton City Council","http://opendatacommunities.org/id/metropolitan-district-council/wolverhampton","Access Tail Lift Services Limited","20507","57.44","Services - Professional Fees","190288882","25/11/2016","Fleet Services","Fleet Management","R4400"
"Wolverhampton City Council","http://opendatacommunities.org/id/metropolitan-district-council/wolverhampton","Access To Business","370","3,697.50","Services - Professional Fees","130138529","02/11/2016","Adult Education","Work Related Studies","R4400"
"Wolverhampton City Council","http://opendatacommunities.org/id/metropolitan-district-council/wolverhampton","Access To Business","370","-3,697.50","Services - Professional Fees","130138529","02/11/2016","Adult Education","Work Related Studies","R4400"
"Wolverhampton City Council","http://opendatacommunities.org/id/metropolitan-district-council/wolverhampton","Access To Business","370","3,697.50","Services - Professional Fees","130138529","02/11/2016","Adult Education","Work Related Studies","R4400"
"Wolverhampton City Council","http://opendatacommunities.org/id/metropolitan-district-council/wolverhampton","Michelle Caney","INVMC2","1,200.00","Services - Professional Fees","130144245","09/11/2016","Legal Services","Centralised External Legal Costs","R4400"
"Wolverhampton City Council","http://opendatacommunities.org/id/metropolitan-district-council/wolverhampton","Acs Business Supplies Limited","SINV00345302","210.45","Stationery","130140183","02/11/2016","Older People Provider Services","Bradley Lodge Resource Centre","R4308"
"Wolverhampton City Council","http://opendatacommunities.org/id/metropolitan-district-council/wolverhampton","Acs Business Supplies Limited","SINV00330251","31.87","Stationery","130128165","02/11/2016","Fleet Services","Fleet Management","R4308"
"Wolverhampton City Council","http://opendatacommunities.org/id/metropolitan-district-council/wolverhampton","Acs Business Supplies Limited","SINV00330251","324.00","Stationery","130128165","02/11/2016","Fleet Services","Passenger Transport - General","R4308"
"Wolverhampton City Council","http://opendatacommunities.org/id/metropolitan-district-council/wolverhampton","Acs Business Supplies Limited","SINV00343965","26.30","Stationery","130139052","02/11/2016","Housing Revenue Account","Duty Office","R4308"
"Wolverhampton City Council","http://opendatacommunities.org/id/metropolitan-district-council/wolverhampton","Acs Business Supplies Limited","SINV00346449","122.30","Stationery","130141097","02/11/2016","Strategic Director Place","Business Manager - Place","R4308"
"Wolverhampton City Council","http://opendatacommunities.org/id/metropolitan-district-council/wolverhampton","Acs Business Supplies Limited","SCRN00040808","-4.38","Stationery","130130160","02/11/2016","Fleet Services","Fleet Management","R4308"
"Wolverhampton City Council","http://opendatacommunities.org/id/metropolitan-district-council/wolverhampton","Acs Business Supplies Limited","SINV00347136","9.02","Stationery","130141543","04/11/2016","Looked After Children","Fostering Team & Allowances","R4308"
"Wolverhampton City Council","http://opendatacommunities.org/id/metropolitan-district-council/wolverhampton","Acs Business Supplies Limited","SINV00347136","-9.02","Stationery","130141543","04/11/2016","Looked After Children","Fostering Team & Allowances","R4308"
"Wolverhampton City Council","http://opendatacommunities.org/id/metropolitan-district-council/wolverhampton","Acs Business Supplies Limited","SINV00347136","9.02","Stationery","130141543","04/11/2016","Looked After Children","Fostering Team & Allowances","R4308"
"Wolverhampton City Council","http://opendatacommunities.org/id/metropolitan-district-council/wolverhampton","Acs Business Supplies Limited","SINV00348031","12.68","Stationery","130142391","04/11/2016","Community Recreation","Community Recreation Community Centre","R4308"
"Wolverhampton City Council","http://opendatacommunities.org/id/metropolitan-district-council/wolverhampton","Acs Business Supplies Limited","SINV00348032","43.77","Stationery","130142392","04/11/2016","Skills","Connexions Contract","R4308"
"Wolverhampton City Council","http://opendatacommunities.org/id/metropolitan-district-council/wolverhampton","Acs Business Supplies Limited","SINV00347689","68.68","Stationery","130142047","04/11/2016","Mental Health Assesment & Care Management","Mental Health Assessment & Care Management","R4308"
"Wolverhampton City Council","http://opendatacommunities.org/id/metropolitan-district-council/wolverhampton","Acs Business Supplies Limited","SINV00347693","214.29","Stationery","130142050","04/11/2016","Early Intervention","EIP Locality 4","R4308"
"Wolverhampton City Council","http://opendatacommunities.org/id/metropolitan-district-council/wolverhampton","Acs Business Supplies Limited","SINV00347137","167.46","Stationery","130141544","04/11/2016","Strategic Director Place","Business Manager - Place","R4308"
"Wolverhampton City Council","http://opendatacommunities.org/id/metropolitan-district-council/wolverhampton","Acs Business Supplies Limited","SINV00347694","48.36","Stationery","130142051","04/11/2016","Catering","Education Catering - General Overheads","R4308"
"Wolverhampton City Council","http://opendatacommunities.org/id/metropolitan-district-council/wolverhampton","Acs Business Supplies Limited","SINV00348588","221.50","Stationery","130142979","11/11/2016","Youth Offending","Youth Offending Team","R4308"
"Wolverhampton City Council","http://opendatacommunities.org/id/metropolitan-district-council/wolverhampton","Acs Business Supplies Limited","SINV00348980","181.55","Stationery","130142985","11/11/2016","Parking Services","Parking Enforcement","R4308"
"Wolverhampton City Council","http://opendatacommunities.org/id/metropolitan-district-council/wolverhampton","Acs Business Supplies Limited","SINV00348591","37.68","Stationery","130142981","11/11/2016","Fleet Services","Fleet Management","R4308"
"Wolverhampton City Council","http://opendatacommunities.org/id/metropolitan-district-council/wolverhampton","Acs Business Supplies Limited","SINV00348589","146.00","Stationery","130142980","11/11/2016","Democratic Services","Register Office","R4308"
"Wolverhampton City Council","http://opendatacommunities.org/id/metropolitan-district-council/wolverhampton","Acs Business Supplies Limited","SINV00327296","147.72","Stationery","130143369","04/11/2016","Independent Living Service","Independent Living Service","R4308"
"Wolverhampton City Council","http://opendatacommunities.org/id/metropolitan-district-council/wolverhampton","Acs Business Supplies Limited","SINV00327297","3.29","Stationery","130143370","04/11/2016","Independent Living Service","Independent Living Service","R4308"
"Wolverhampton City Council","http://opendatacommunities.org/id/metropolitan-district-council/wolverhampton","Acs Business Supplies Limited","SINV00345740","38.44","Stationery","130140187","04/11/2016","Management and Administration","Public Health Support Costs","R4308"
"Wolverhampton City Council","http://opendatacommunities.org/id/metropolitan-district-council/wolverhampton","Acs Business Supplies Limited","SINV00349947","160.05","Stationery","130143837","23/11/2016","Independent Living Service","Independent Living Service","R4308"
"Wolverhampton City Council","http://opendatacommunities.org/id/metropolitan-district-council/wolverhampton","Acs Business Supplies Limited","SINV00349808","54.00","Stationery","130143376","23/11/2016","Looked After Children","Adoption and Residence Team & Allowances","R4308"
"Wolverhampton City Council","http://opendatacommunities.org/id/metropolitan-district-council/wolverhampton","Acs Business Supplies Limited","SINV00349813","38.04","Stationery","130143381","23/11/2016","Fleet Services","Passenger Transport - General","R4308"
"Wolverhampton City Council","http://opendatacommunities.org/id/metropolitan-district-council/wolverhampton","Acs Business Supplies Limited","SINV00349812","41.51","Stationery","130143380","23/11/2016","Early Intervention","EIP Locality 7","R4308"
"Wolverhampton City Council","http://opendatacommunities.org/id/metropolitan-district-council/wolverhampton","Acs Business Supplies Limited","SCRN00041015","-25.18","Stationery","130142971","23/11/2016","Fleet Services","Fleet Management","R4308"
"Wolverhampton City Council","http://opendatacommunities.org/id/metropolitan-district-council/wolverhampton","Acs Business Supplies Limited","SINV00350162","38.99","Stationery","130144053","23/11/2016","Emergency Duty Team","Emergency Duty Team","R4308"
"Wolverhampton City Council","http://opendatacommunities.org/id/metropolitan-district-council/wolverhampton","Acs Business Supplies Limited","SINV00349814","79.80","Stationery","130143382","23/11/2016","Welfare Rights & Financial Assessment","Financial Assessments","R4308"
"Wolverhampton City Council","http://opendatacommunities.org/id/metropolitan-district-council/wolverhampton","Acs Business Supplies Limited","SINV00350374","40.09","Stationery","130144273","23/11/2016","Welfare Rights & Financial Assessment","Welfare Rights","R4308"
"Wolverhampton City Council","http://opendatacommunities.org/id/metropolitan-district-council/wolverhampton","Acs Business Supplies Limited","SINV00350375","8.61","Stationery","130144274","23/11/2016","Leisure Services","Bert Williams Leisure Centre","R4308"
"Wolverhampton City Council","http://opendatacommunities.org/id/metropolitan-district-council/wolverhampton","Acs Business Supplies Limited","SINV00350157","24.49","Stationery","130144048","23/11/2016","Early Intervention","EIP Locality 1","R4308"
"Wolverhampton City Council","http://opendatacommunities.org/id/metropolitan-district-council/wolverhampton","Acs Business Supplies Limited","SINV00350161","507.20","Stationery","130144052","23/11/2016","ICTS","Document Centre - General","R4308"
"Wolverhampton City Council","http://opendatacommunities.org/id/metropolitan-district-council/wolverhampton","Acs Business Supplies Limited","SINV00349811","63.40","Stationery","130143379","23/11/2016","Adult Education","Work Related Studies","R4308"
"Wolverhampton City Council","http://opendatacommunities.org/id/metropolitan-district-council/wolverhampton","Acs Business Supplies Limited","SINV00349945","106.89","Stationery","130143835","23/11/2016","Visitor Economy","Civic Halls Non-Direct Event Management Account","R4308"
"Wolverhampton City Council","http://opendatacommunities.org/id/metropolitan-district-council/wolverhampton","Acs Business Supplies Limited","SINV00349945","96.46","Stationery","130143835","23/11/2016","Visitor Economy","Art Gallery","R4308"
"Wolverhampton City Council","http://opendatacommunities.org/id/metropolitan-district-council/wolverhampton","Acs Business Supplies Limited","SINV00349945","44.95","Stationery","130143835","23/11/2016","Visitor Economy","Box Office Administration","R4308"
"Wolverhampton City Council","http://opendatacommunities.org/id/metropolitan-district-council/wolverhampton","Acs Business Supplies Limited","SINV00349809","58.98","Stationery","130143377","23/11/2016","Cleaning","Cleaning of Buildings - General","R4308"
"Wolverhampton City Council","http://opendatacommunities.org/id/metropolitan-district-council/wolverhampton","Acs Business Supplies Limited","SINV00349807","13.99","Stationery","130143375","23/11/2016","Democratic Services","Register Office","R4308"
"Wolverhampton City Council","http://opendatacommunities.org/id/metropolitan-district-council/wolverhampton","Acs Business Supplies Limited","SINV00349298","507.20","Stationery","130143374","18/11/2016","ICTS","Document Centre - General","R4308"
"Wolverhampton City Council","http://opendatacommunities.org/id/metropolitan-district-council/wolverhampton","Acs Business Supplies Limited","SINV00349296","6.69","Stationery","130143373","18/11/2016","School Planning & Resources","Pupil & Student Support","R4308"
"Wolverhampton City Council","http://opendatacommunities.org/id/metropolitan-district-council/wolverhampton","Acs Business Supplies Limited","SINV00349295","47.96","Stationery","130143372","18/11/2016","Democratic Services","Mayoral Expenses","R4308"
"Wolverhampton City Council","http://opendatacommunities.org/id/metropolitan-district-council/wolverhampton","Acs Business Supplies Limited","SINV00327861","21.99","Stationery","130126874","09/11/2016","Adult Education","Service Wide","R4308"
"Wolverhampton City Council","http://opendatacommunities.org/id/metropolitan-district-council/wolverhampton","Acs Business Supplies Limited","SINV00347696","106.08","Stationery","130142053","09/11/2016","Revenues & Benefits","Revenues","R4308"
"Wolverhampton City Council","http://opendatacommunities.org/id/metropolitan-district-council/wolverhampton","Acs Business Supplies Limited","SINV00348986","91.74","Stationery","130142991","11/11/2016","Safeguarding","Head of Service Quality and Safeguarding","R4308"
"Wolverhampton City Council","http://opendatacommunities.org/id/metropolitan-district-council/wolverhampton","Acs Business Supplies Limited","SINV00348592","118.97","Stationery","130144271","11/11/2016","Psychology","Inclusion Support","R4308"
"Wolverhampton City Council","http://opendatacommunities.org/id/metropolitan-district-council/wolverhampton","Acs Business Supplies Limited","SINV00348984","79.90","Stationery","130142989","11/11/2016","ICTS","Document Centre - General","R4308"
"Wolverhampton City Council","http://opendatacommunities.org/id/metropolitan-district-council/wolverhampton","Acs Business Supplies Limited","SINV00348249","898.49","Stationery","130142393","11/11/2016","Adult Education","Service Wide","R4308"
"Wolverhampton City Council","http://opendatacommunities.org/id/metropolitan-district-council/wolverhampton","Acs Business Supplies Limited","SINV00348590","109.80","Stationery","130144270","11/11/2016","Adult Education","Work Related Studies","R4308"
"Wolverhampton City Council","http://opendatacommunities.org/id/metropolitan-district-council/wolverhampton","Acs Business Supplies Limited","SINV00348985","58.03","Stationery","130142990","11/11/2016","Early Intervention","EIP Locality 5","R4308"
"Wolverhampton City Council","http://opendatacommunities.org/id/metropolitan-district-council/wolverhampton","Acs Business Supplies Limited","SINV00346446","22.96","Stationery","130141094","02/11/2016","Revenues & Benefits","Revenues","R4308"
"Wolverhampton City Council","http://opendatacommunities.org/id/metropolitan-district-council/wolverhampton","Acs Business Supplies Limited","SINV00346444","7.58","Materials","130141092","02/11/2016","ICTS","Document Centre - General","R4007"
"Wolverhampton City Council","http://opendatacommunities.org/id/metropolitan-district-council/wolverhampton","Acs Business Supplies Limited","SINV00346444","23.96","Stationery","130141092","02/11/2016","ICTS","Document Centre - General","R4308"
"Wolverhampton City Council","http://opendatacommunities.org/id/metropolitan-district-council/wolverhampton","Acs Business Supplies Limited","SINV00347695","27.27","Stationery","130142052","04/11/2016","Child Protection","CIN/CP Social Work Unit - Area 8","R4308"
"Wolverhampton City Council","http://opendatacommunities.org/id/metropolitan-district-council/wolverhampton","Acs Business Supplies Limited","SINV00347692","195.12","Stationery","130142049","04/11/2016","Customer Services","City Direct","R4308"
"Wolverhampton City Council","http://opendatacommunities.org/id/metropolitan-district-council/wolverhampton","Acs Business Supplies Limited","SINV00347134","64.84","Stationery","130141541","04/11/2016","Safeguarding","Head of Service Quality and Safeguarding","R4308"
"Wolverhampton City Council","http://opendatacommunities.org/id/metropolitan-district-council/wolverhampton","Acs Business Supplies Limited","SINV00351711","52.55","Stationery","130145129","30/11/2016","Bereavement Services","Cemeteries","R4308"
"Wolverhampton City Council","http://opendatacommunities.org/id/metropolitan-district-council/wolverhampton","Acs Business Supplies Limited","SINV00348594","167.50","Stationery","130142983","23/11/2016","Adult Education","Language Studies Delivery Area","R4308"
"Wolverhampton City Council","http://opendatacommunities.org/id/metropolitan-district-council/wolverhampton","Acs Business Supplies Limited","SINV00348030","121.54","Stationery","130142390","23/11/2016","Catering","Education Catering - General Overheads","R4308"
"Wolverhampton City Council","http://opendatacommunities.org/id/metropolitan-district-council/wolverhampton","Acs Business Supplies Limited","SINV00348979","192.56","Stationery","130142984","23/11/2016","Catering","Education Catering - General Overheads","R4308"
"Wolverhampton City Council","http://opendatacommunities.org/id/metropolitan-district-council/wolverhampton","Acs Business Supplies Limited","SINV00349944","92.72","Stationery","130143834","25/11/2016","Visitor Economy","Northicote Farm","R4308"
"Wolverhampton City Council","http://opendatacommunities.org/id/metropolitan-district-council/wolverhampton","Acs Business Supplies Limited","SINV00350704","123.02","Stationery","130144597","25/11/2016","Cleaning","Cleaning of Buildings - General","R4308"
"Wolverhampton City Council","http://opendatacommunities.org/id/metropolitan-district-council/wolverhampton","Acs Business Supplies Limited","SINV00346448","63.40","Stationery","130141096","02/11/2016","Adult Education","Direct Delivery Team ( L.& D.)","R4308"
"Wolverhampton City Council","http://opendatacommunities.org/id/metropolitan-district-council/wolverhampton","Acs Business Supplies Limited","SINV00346642","34.40","Stationery","130141307","02/11/2016","Youth Offending","Youth Offending Team","R4308"
"Wolverhampton City Council","http://opendatacommunities.org/id/metropolitan-district-council/wolverhampton","Acs Business Supplies Limited","SINV00346450","65.53","Stationery","130141098","02/11/2016","Fleet Services","Fleet Management","R4308"
"Wolverhampton City Council","http://opendatacommunities.org/id/metropolitan-district-council/wolverhampton","Acs Business Supplies Limited","SINV00346447","79.80","Stationery","130141095","02/11/2016","Youth Offending","Youth Offending Team","R4308"
"Wolverhampton City Council","http://opendatacommunities.org/id/metropolitan-district-council/wolverhampton","Acs Business Supplies Limited","SINV00351717","18.44","Stationery","130145135","30/11/2016","Strategic Director Place","Business Manager - Place","R4308"
"Wolverhampton City Council","http://opendatacommunities.org/id/metropolitan-district-council/wolverhampton","Acs Business Supplies Limited","SINV00351710","66.20","Stationery","130145128","30/11/2016","Looked After Children","LAC Education Team (LACE)","R4308"
"Wolverhampton City Council","http://opendatacommunities.org/id/metropolitan-district-council/wolverhampton","Acs Business Supplies Limited","SINV00351710","-66.20","Stationery","130145128","30/11/2016","Looked After Children","LAC Education Team (LACE)","R4308"
"Wolverhampton City Council","http://opendatacommunities.org/id/metropolitan-district-council/wolverhampton","Acs Business Supplies Limited","SINV00351710","48.16","Stationery","130145128","30/11/2016","Looked After Children","LAC Education Team (LACE)","R4308"
"Wolverhampton City Council","http://opendatacommunities.org/id/metropolitan-district-council/wolverhampton","Acs Business Supplies Limited","SINV00351710","18.04","Stationery","130145128","30/11/2016","Looked After Children","LAC Education Team (LACE)","R4308"
"Wolverhampton City Council","http://opendatacommunities.org/id/metropolitan-district-council/wolverhampton","Acs Business Supplies Limited","SINV00351716","214.98","Stationery","130145134","30/11/2016","Public Protection","EHTS Operational Costs","R4308"
"Wolverhampton City Council","http://opendatacommunities.org/id/metropolitan-district-council/wolverhampton","Acs Business Supplies Limited","SINV00351714","18.99","Stationery","130145132","30/11/2016","Welfare Rights & Financial Assessment","Financial Assessments","R4308"
"Wolverhampton City Council","http://opendatacommunities.org/id/metropolitan-district-council/wolverhampton","Acs Business Supplies Limited","SINV00351718","49.69","Stationery","130145136","30/11/2016","Older People Provider Services","Reablement Team","R4308"
"Wolverhampton City Council","http://opendatacommunities.org/id/metropolitan-district-council/wolverhampton","Acs Business Supplies Limited","SINV00351709","178.60","Stationery","130145127","30/11/2016","Leisure Services","Central Baths","R4308"
"Wolverhampton City Council","http://opendatacommunities.org/id/metropolitan-district-council/wolverhampton","Acs Business Supplies Limited","SINV00351712","22.56","Stationery","130145130","30/11/2016","Independent Living Service","Independent Living Service","R4308"
"Wolverhampton City Council","http://opendatacommunities.org/id/metropolitan-district-council/wolverhampton","Acs Business Supplies Limited","SINV00351720","126.80","Stationery","130145138","30/11/2016","Adult Education","Service Wide","R4308"
"Wolverhampton City Council","http://opendatacommunities.org/id/metropolitan-district-council/wolverhampton","Acs Business Supplies Limited","SINV00348250","240.32","Stationery","130142394","11/11/2016","Library Services","Global Budgets","R4308"
"Wolverhampton City Council","http://opendatacommunities.org/id/metropolitan-district-council/wolverhampton","Acs Business Supplies Limited","SINV00349816","31.36","Stationery","130143384","23/11/2016","Specialist Support","Intensive Family Support Team","R4308"
"Wolverhampton City Council","http://opendatacommunities.org/id/metropolitan-district-council/wolverhampton","Acs Business Supplies Limited","SINV00349946","29.83","Stationery","130143836","23/11/2016","Fleet Services","Passenger Transport - General","R4308"
"Wolverhampton City Council","http://opendatacommunities.org/id/metropolitan-district-council/wolverhampton","Acs Business Supplies Limited","SINV00350158","92.00","Stationery","130144049","23/11/2016","Child Protection","CIN/CP Social Work Unit - Area 3","R4308"
"Wolverhampton City Council","http://opendatacommunities.org/id/metropolitan-district-council/wolverhampton","Acs Business Supplies Limited","SINV00350156","113.47","Stationery","130144047","23/11/2016","Early Intervention","EIP Locality 3","R4308"
"Wolverhampton City Council","http://opendatacommunities.org/id/metropolitan-district-council/wolverhampton","Acs Business Supplies Limited","SINV00349810","85.34","Stationery","130143378","23/11/2016","Child Protection","MASH","R4308"
"Wolverhampton City Council","http://opendatacommunities.org/id/metropolitan-district-council/wolverhampton","Acs Business Supplies Limited","SINV00349815","34.53","Stationery","130143383","23/11/2016","Revenues & Benefits","Revenues","R4308"
"Wolverhampton City Council","http://opendatacommunities.org/id/metropolitan-district-council/wolverhampton","Acs Business Supplies Limited","SINV00349297","7.13","Stationery","130144272","18/11/2016","Emergency Duty Team","Emergency Duty Team","R4308"
"Wolverhampton City Council","http://opendatacommunities.org/id/metropolitan-district-council/wolverhampton","Acs Business Supplies Limited","SINV00346445","21.30","Stationery","130141093","18/11/2016","Standards and Vulnerable Pupils","Parent / Partnership Service","R4308"
"Wolverhampton City Council","http://opendatacommunities.org/id/metropolitan-district-council/wolverhampton","Acs Business Supplies Limited","SINV00351209","368.00","Stationery","130144602","25/11/2016","Customer Services","City Direct","R4308"
"Wolverhampton City Council","http://opendatacommunities.org/id/metropolitan-district-council/wolverhampton","Acs Business Supplies Limited","SINV00350705","35.62","Stationery","130144598","25/11/2016","Capital Programme","Head of Projects and Works","R4308"
"Wolverhampton City Council","http://opendatacommunities.org/id/metropolitan-district-council/wolverhampton","Acs Business Supplies Limited","SINV00350706","138.60","Stationery","130144599","25/11/2016","Early Intervention","EIP Locality 3","R4308"
"Wolverhampton City Council","http://opendatacommunities.org/id/metropolitan-district-council/wolverhampton","Acs Business Supplies Limited","SINV00351210","137.40","Stationery","130144603","25/11/2016","Strategic Director Place","Business Manager - Place","R4308"
"Wolverhampton City Council","http://opendatacommunities.org/id/metropolitan-district-council/wolverhampton","Acs Business Supplies Limited","SINV00351449","123.34","Stationery","130144605","25/11/2016","Child Protection","CIN/CP Social Work Unit - Area 5","R4308"
"Wolverhampton City Council","http://opendatacommunities.org/id/metropolitan-district-council/wolverhampton","Acs Business Supplies Limited","SINV00325951","8.22","Stationery","130125155","11/11/2016","Looked After Children","Fostering Team & Allowances","R4308"
"Wolverhampton City Council","http://opendatacommunities.org/id/metropolitan-district-council/wolverhampton","Acs Business Supplies Limited","SINV00347690","30.90","Stationery","130142048","11/11/2016","Adult Education","Work Related Studies","R4308"
"Wolverhampton City Council","http://opendatacommunities.org/id/metropolitan-district-council/wolverhampton","Acs Business Supplies Limited","SINV00348593","31.36","Stationery","130142982","11/11/2016","Specialist Support","Intensive Family Support Team","R4308"
"Wolverhampton City Council","http://opendatacommunities.org/id/metropolitan-district-council/wolverhampton","Activities 4 U","3242","150.00","Services - Supplies and Services to service users","130137028","16/11/2016","Older People Provider Services","Bradley Lodge Resource Centre","R4408"
"Wolverhampton City Council","http://opendatacommunities.org/id/metropolitan-district-council/wolverhampton","Activities 4 U","3242","-150.00","Services - Supplies and Services to service users","130137028","16/11/2016","Older People Provider Services","Bradley Lodge Resource Centre","R4408"
"Wolverhampton City Council","http://opendatacommunities.org/id/metropolitan-district-council/wolverhampton","Activities 4 U","3242","150.00","Services - Supplies and Services to service users","130137028","16/11/2016","Older People Provider Services","Bradley Lodge Resource Centre","R4408"
"Wolverhampton City Council","http://opendatacommunities.org/id/metropolitan-district-council/wolverhampton","Activities 4 U","3102","60.00","Services - Supplies and Services to service users","130132683","16/11/2016","Older People Provider Services","Bradley Lodge Resource Centre","R4408"
"Wolverhampton City Council","http://opendatacommunities.org/id/metropolitan-district-council/wolverhampton","Activities 4 U","3102","-60.00","Services - Supplies and Services to service users","130132683","16/11/2016","Older People Provider Services","Bradley Lodge Resource Centre","R4408"
"Wolverhampton City Council","http://opendatacommunities.org/id/metropolitan-district-council/wolverhampton","Activities 4 U","3102","60.00","Services - Supplies and Services to service users","130132683","16/11/2016","Older People Provider Services","Bradley Lodge Resource Centre","R4408"
"Wolverhampton City Council","http://opendatacommunities.org/id/metropolitan-district-council/wolverhampton","Activities 4 U","3245","90.00","Services - Supplies and Services to service users","130139875","16/11/2016","Older People Provider Services","Bradley Lodge Resource Centre","R4408"
"Wolverhampton City Council","http://opendatacommunities.org/id/metropolitan-district-council/wolverhampton","Activities 4 U","3245","-90.00","Services - Supplies and Services to service users","130139875","16/11/2016","Older People Provider Services","Bradley Lodge Resource Centre","R4408"
"Wolverhampton City Council","http://opendatacommunities.org/id/metropolitan-district-council/wolverhampton","Activities 4 U","3245","90.00","Services - Supplies and Services to service users","130139875","16/11/2016","Older People Provider Services","Bradley Lodge Resource Centre","R4408"
"Wolverhampton City Council","http://opendatacommunities.org/id/metropolitan-district-council/wolverhampton","Activities 4 U","3249","90.00","Services - Supplies and Services to service users","130145022","25/11/2016","Older People Provider Services","Bradley Lodge Resource Centre","R4408"
"Wolverhampton City Council","http://opendatacommunities.org/id/metropolitan-district-council/wolverhampton","P Kitterick","00024","1,200.00","TPP - Maintenance Contractor - General","190282031","04/11/2016","Parking Services","Cycling Schemes - Bikeability","R5720"
"Wolverhampton City Council","http://opendatacommunities.org/id/metropolitan-district-council/wolverhampton","Partisip8/P Sicilia","708","1,300.00","TPP - Maintenance Contractor - General","190282023","04/11/2016","Parking Services","Cycling Schemes - Bikeability","R5720"
"Wolverhampton City Council","http://opendatacommunities.org/id/metropolitan-district-council/wolverhampton","Partisip8/P Sicilia","708/1","300.00","TPP - Maintenance Contractor - General","190282024","04/11/2016","Parking Services","Cycling Schemes - Training West Midlands","R5720"
"Wolverhampton City Council","http://opendatacommunities.org/id/metropolitan-district-council/wolverhampton","Adreeja Chatterjee","634134/Adreeja Chatterjee","7,750.00","Services - Professional Fees","130142897","02/11/2016","Child Protection","Head of Service - CINCP","R4400"
"Wolverhampton City Council","http://opendatacommunities.org/id/metropolitan-district-council/wolverhampton","R Millard","0032","140.00","Services - Professional Fees","190282027","04/11/2016","Parking Services","Advisory Road Markings and Disabled Bays","R4400"
"Wolverhampton City Council","http://opendatacommunities.org/id/metropolitan-district-council/wolverhampton","R Millard","0032/1","70.00","TPP - Maintenance Contractor - General","190282028","04/11/2016","Parking Services","Cycling Schemes - Bikeability","R5720"
"Wolverhampton City Council","http://opendatacommunities.org/id/metropolitan-district-council/wolverhampton","R Millington","00026","1,150.00","TPP - Maintenance Contractor - General","190282017","04/11/2016","Parking Services","Cycling Schemes - Bikeability","R5720"
"Wolverhampton City Council","http://opendatacommunities.org/id/metropolitan-district-council/wolverhampton","Adt Fire And Security PLC","33545111-02","74.00","Fixtures and Fittings - R&M","130142877","02/11/2016","Facilities Management","Public Conveniences","R2502"
"Wolverhampton City Council","http://opendatacommunities.org/id/metropolitan-district-council/wolverhampton","Adt Fire And Security PLC","33066959 - 02","338.00","Fixtures and Fittings - R&M","130142876","02/11/2016","Maintenance Programme","Centralised R&M","R2502"
"Wolverhampton City Council","http://opendatacommunities.org/id/metropolitan-district-council/wolverhampton","Adt Fire And Security PLC","33066369-02","246.67","Construction and Conversion","130143737","04/11/2016","-","Primary Expansion Programme","C1100"
"Wolverhampton City Council","http://opendatacommunities.org/id/metropolitan-district-council/wolverhampton","Adt Fire And Security PLC","32278892 - 02","1,063.68","Services - Security","130138963","04/11/2016","Maintenance Programme","Centralised R&M","R4405"
"Wolverhampton City Council","http://opendatacommunities.org/id/metropolitan-district-council/wolverhampton","Adt Fire And Security PLC","32538485 - 02","-215.68","Services - Security","130144138","11/11/2016","Maintenance Programme","Centralised R&M","R4405"
"Wolverhampton City Council","http://opendatacommunities.org/id/metropolitan-district-council/wolverhampton","Adt Fire And Security PLC","33973183 - 02","61.25","Fixtures and Fittings - R&M","130146534","30/11/2016","Maintenance Programme","Centralised R&M","R2502"
"Wolverhampton City Council","http://opendatacommunities.org/id/metropolitan-district-council/wolverhampton","Adt Fire And Security PLC","33897575 - 02","84.61","R&M - Departmental planned (external)","130146722","30/11/2016","Facilities Management","Caretakers Community Centre","R2001"
"Wolverhampton City Council","http://opendatacommunities.org/id/metropolitan-district-council/wolverhampton","Adt Fire And Security PLC","33457660 - 02","1,076.44","Fixtures and Fittings - R&M","130146533","25/11/2016","Maintenance Programme","Centralised R&M","R2502"
"Wolverhampton City Council","http://opendatacommunities.org/id/metropolitan-district-council/wolverhampton","Adt Fire And Security PLC","33058818-02","286.00","Services - Security","130144670","11/11/2016","Markets","Bilston Market and Licensed Operations","R4405"
"Wolverhampton City Council","http://opendatacommunities.org/id/metropolitan-district-council/wolverhampton","Af Blakemore/Blakemore Foodservice","WCC000198","479.16","Provisions (Resale)","130141690","11/11/2016","Catering","Civic Centre Catering","R4102"
"Wolverhampton City Council","http://opendatacommunities.org/id/metropolitan-district-council/wolverhampton","Af Blakemore/Blakemore Foodservice","5239844","130.24","Provisions (Not for resale)","130141771","11/11/2016","Learning Disability Provider","Duke Street Bungalows","R4101"
"Wolverhampton City Council","http://opendatacommunities.org/id/metropolitan-district-council/wolverhampton","Af Blakemore/Blakemore Foodservice","WCC000197","311.54","Provisions (Resale)","130141689","11/11/2016","Leisure Services","Bert Williams Leisure Centre Caf�","R4102"
"Wolverhampton City Council","http://opendatacommunities.org/id/metropolitan-district-council/wolverhampton","Af Blakemore/Blakemore Foodservice","WCC000197","-311.54","Provisions (Resale)","130141689","11/11/2016","Leisure Services","Bert Williams Leisure Centre Caf�","R4102"
"Wolverhampton City Council","http://opendatacommunities.org/id/metropolitan-district-council/wolverhampton","Af Blakemore/Blakemore Foodservice","WCC000197","309.48","Provisions (Resale)","130141689","11/11/2016","Leisure Services","Bert Williams Leisure Centre Caf�","R4102"
"Wolverhampton City Council","http://opendatacommunities.org/id/metropolitan-district-council/wolverhampton","Af Blakemore/Blakemore Foodservice","WCC000197","2.06","Provisions (Resale)","130141689","11/11/2016","Leisure Services","Bert Williams Leisure Centre Caf�","R4102"
"Wolverhampton City Council","http://opendatacommunities.org/id/metropolitan-district-council/wolverhampton","Af Blakemore/Blakemore Foodservice","WCC000199","544.91","Provisions (Resale)","130141691","11/11/2016","Leisure Services","Bert Williams Leisure Centre Caf�","R4102"
"Wolverhampton City Council","http://opendatacommunities.org/id/metropolitan-district-council/wolverhampton","Af Blakemore/Blakemore Foodservice","WCC000199","-544.91","Provisions (Resale)","130141691","11/11/2016","Leisure Services","Bert Williams Leisure Centre Caf�","R4102"
"Wolverhampton City Council","http://opendatacommunities.org/id/metropolitan-district-council/wolverhampton","Af Blakemore/Blakemore Foodservice","WCC000199","270.49","Provisions (Resale)","130141691","11/11/2016","Leisure Services","Bert Williams Leisure Centre Caf�","R4102"
"Wolverhampton City Council","http://opendatacommunities.org/id/metropolitan-district-council/wolverhampton","Af Blakemore/Blakemore Foodservice","WCC000199","274.42","Provisions (Resale)","130141691","11/11/2016","Leisure Services","Bert Williams Leisure Centre Caf�","R4102"
"Wolverhampton City Council","http://opendatacommunities.org/id/metropolitan-district-council/wolverhampton","Af Blakemore/Blakemore Foodservice","WCC000196","275.40","Provisions (Resale)","130141688","11/11/2016","Catering","Meals on Wheels","R4102"
"Wolverhampton City Council","http://opendatacommunities.org/id/metropolitan-district-council/wolverhampton","Af Blakemore/Blakemore Foodservice","WCC000196","18.24","Provisions (Resale)","130141688","11/11/2016","Catering","Meals on Wheels","R4102"
"Wolverhampton City Council","http://opendatacommunities.org/id/metropolitan-district-council/wolverhampton","Af Blakemore/Blakemore Foodservice","WCC000196","293.64","Provisions (Resale)","130141688","11/11/2016","Catering","Meals on Wheels","R4102"
"Wolverhampton City Council","http://opendatacommunities.org/id/metropolitan-district-council/wolverhampton","Af Blakemore/Blakemore Foodservice","WCC000196","-293.64","Provisions (Resale)","130141688","11/11/2016","Catering","Meals on Wheels","R4102"
"Wolverhampton City Council","http://opendatacommunities.org/id/metropolitan-district-council/wolverhampton","Af Blakemore/Blakemore Foodservice","WCC000194","92,939.06","Provisions (Resale)","130141686","11/11/2016","Catering","Education Catering - General Overheads","R4102"
"Wolverhampton City Council","http://opendatacommunities.org/id/metropolitan-district-council/wolverhampton","Af Blakemore/Blakemore Foodservice","WCC000194","-92,939.06","Provisions (Resale)","130141686","11/11/2016","Catering","Education Catering - General Overheads","R4102"
"Wolverhampton City Council","http://opendatacommunities.org/id/metropolitan-district-council/wolverhampton","Af Blakemore/Blakemore Foodservice","WCC000194","79,862.13","Provisions (Resale)","130141686","11/11/2016","Catering","Education Catering - General Overheads","R4102"
"Wolverhampton City Council","http://opendatacommunities.org/id/metropolitan-district-council/wolverhampton","Af Blakemore/Blakemore Foodservice","WCC000194","13,076.93","Provisions (Resale)","130141686","11/11/2016","Catering","Education Catering - General Overheads","R4102"
"Wolverhampton City Council","http://opendatacommunities.org/id/metropolitan-district-council/wolverhampton","Af Blakemore/Blakemore Foodservice","WCC000195","139,343.18","Provisions (Resale)","130141687","11/11/2016","Catering","Education Catering - General Overheads","R4102"
"Wolverhampton City Council","http://opendatacommunities.org/id/metropolitan-district-council/wolverhampton","Af Blakemore/Blakemore Foodservice","WCC000195","-139,343.18","Provisions (Resale)","130141687","11/11/2016","Catering","Education Catering - General Overheads","R4102"
"Wolverhampton City Council","http://opendatacommunities.org/id/metropolitan-district-council/wolverhampton","Af Blakemore/Blakemore Foodservice","WCC000195","139,175.24","Provisions (Resale)","130141687","11/11/2016","Catering","Education Catering - General Overheads","R4102"
"Wolverhampton City Council","http://opendatacommunities.org/id/metropolitan-district-council/wolverhampton","Af Blakemore/Blakemore Foodservice","WCC000195","167.94","Provisions (Resale)","130141687","11/11/2016","Catering","Education Catering - General Overheads","R4102"
"Wolverhampton City Council","http://opendatacommunities.org/id/metropolitan-district-council/wolverhampton","Af Blakemore/Blakemore Foodservice","5194331","470.53","Provisions (Resale)","130137999","18/11/2016","Older People Provider Services","Bradley Lodge Resource Centre","R4102"
"Wolverhampton City Council","http://opendatacommunities.org/id/metropolitan-district-council/wolverhampton","Af Blakemore/Blakemore Foodservice","5194331","-470.53","Provisions (Resale)","130137999","18/11/2016","Older People Provider Services","Bradley Lodge Resource Centre","R4102"
"Wolverhampton City Council","http://opendatacommunities.org/id/metropolitan-district-council/wolverhampton","Af Blakemore/Blakemore Foodservice","5194331","371.33","Provisions (Resale)","130137999","18/11/2016","Older People Provider Services","Bradley Lodge Resource Centre","R4102"
"Wolverhampton City Council","http://opendatacommunities.org/id/metropolitan-district-council/wolverhampton","Af Blakemore/Blakemore Foodservice","5194331","99.20","Provisions (Resale)","130137999","18/11/2016","Older People Provider Services","Bradley Lodge Resource Centre","R4102"
"Wolverhampton City Council","http://opendatacommunities.org/id/metropolitan-district-council/wolverhampton","Af Blakemore/Blakemore Foodservice","5194325","37.93","Provisions (Resale)","130137998","18/11/2016","Older People Provider Services","Bradley Lodge Resource Centre","R4102"
"Wolverhampton City Council","http://opendatacommunities.org/id/metropolitan-district-council/wolverhampton","Af Blakemore/Blakemore Foodservice","5194325","-37.93","Provisions (Resale)","130137998","18/11/2016","Older People Provider Services","Bradley Lodge Resource Centre","R4102"
"Wolverhampton City Council","http://opendatacommunities.org/id/metropolitan-district-council/wolverhampton","Af Blakemore/Blakemore Foodservice","5194325","29.69","Provisions (Resale)","130137998","18/11/2016","Older People Provider Services","Bradley Lodge Resource Centre","R4102"
"Wolverhampton City Council","http://opendatacommunities.org/id/metropolitan-district-council/wolverhampton","Af Blakemore/Blakemore Foodservice","5194325","8.24","Provisions (Resale)","130137998","18/11/2016","Older People Provider Services","Bradley Lodge Resource Centre","R4102"
"Wolverhampton City Council","http://opendatacommunities.org/id/metropolitan-district-council/wolverhampton","Af Blakemore/Blakemore Foodservice","5241422","19.20","Provisions (Not for resale)","130144505","16/11/2016","Older People Provider Services","Blakenhall Resource Centre","R4101"
"Wolverhampton City Council","http://opendatacommunities.org/id/metropolitan-district-council/wolverhampton","Af Blakemore/Blakemore Foodservice","4802041","590.59","Provisions (Not for resale)","130126488","25/11/2016","Older People Provider Services","Nelson Mandela House","R4101"
"Wolverhampton City Council","http://opendatacommunities.org/id/metropolitan-district-council/wolverhampton","Af Blakemore/Blakemore Foodservice","4802041","197.13","Provisions (Not for resale)","130126488","25/11/2016","Older People Provider Services","Nelson Mandela House","R4101"
"Wolverhampton City Council","http://opendatacommunities.org/id/metropolitan-district-council/wolverhampton","Af Blakemore/Blakemore Foodservice","4868398","1,188.63","Provisions (Not for resale)","130126718","25/11/2016","Older People Provider Services","Merry Hill House","R4101"
"Wolverhampton City Council","http://opendatacommunities.org/id/metropolitan-district-council/wolverhampton","Af Blakemore/Blakemore Foodservice","4868398","-1,188.63","Provisions (Not for resale)","130126718","25/11/2016","Older People Provider Services","Merry Hill House","R4101"
"Wolverhampton City Council","http://opendatacommunities.org/id/metropolitan-district-council/wolverhampton","Af Blakemore/Blakemore Foodservice","4868398","540.22","Provisions (Not for resale)","130126718","25/11/2016","Older People Provider Services","Merry Hill House","R4101"
"Wolverhampton City Council","http://opendatacommunities.org/id/metropolitan-district-council/wolverhampton","Af Blakemore/Blakemore Foodservice","4868398","648.41","Provisions (Not for resale)","130126718","25/11/2016","Older People Provider Services","Merry Hill House","R4101"
"Wolverhampton City Council","http://opendatacommunities.org/id/metropolitan-district-council/wolverhampton","Af Blakemore/Blakemore Foodservice","4837991","733.34","Provisions (Not for resale)","130135145","25/11/2016","Older People Provider Services","Nelson Mandela House","R4101"
"Wolverhampton City Council","http://opendatacommunities.org/id/metropolitan-district-council/wolverhampton","Af Blakemore/Blakemore Foodservice","4739922","701.24","Provisions (Not for resale)","130123795","25/11/2016","Older People Provider Services","Nelson Mandela House","R4101"
"Wolverhampton City Council","http://opendatacommunities.org/id/metropolitan-district-council/wolverhampton","Af Blakemore/Blakemore Foodservice","4739922","179.51","Provisions (Not for resale)","130123795","25/11/2016","Older People Provider Services","Nelson Mandela House","R4101"
"Wolverhampton City Council","http://opendatacommunities.org/id/metropolitan-district-council/wolverhampton","Af Blakemore/Blakemore Foodservice","4783363","647.28","Provisions (Not for resale)","130126482","25/11/2016","Older People Provider Services","Nelson Mandela House","R4101"
"Wolverhampton City Council","http://opendatacommunities.org/id/metropolitan-district-council/wolverhampton","Af Blakemore/Blakemore Foodservice","4783363","264.03","Provisions (Not for resale)","130126482","25/11/2016","Older People Provider Services","Nelson Mandela House","R4101"
"Wolverhampton City Council","http://opendatacommunities.org/id/metropolitan-district-council/wolverhampton","Af Blakemore/Blakemore Foodservice","4837991","-733.34","Provisions (Not for resale)","130135145","25/11/2016","Older People Provider Services","Nelson Mandela House","R4101"
"Wolverhampton City Council","http://opendatacommunities.org/id/metropolitan-district-council/wolverhampton","Af Blakemore/Blakemore Foodservice","4837991","162.84","Provisions (Not for resale)","130135145","25/11/2016","Older People Provider Services","Nelson Mandela House","R4101"
"Wolverhampton City Council","http://opendatacommunities.org/id/metropolitan-district-council/wolverhampton","Af Blakemore/Blakemore Foodservice","4837991","570.50","Provisions (Not for resale)","130135145","25/11/2016","Older People Provider Services","Nelson Mandela House","R4101"
"Wolverhampton City Council","http://opendatacommunities.org/id/metropolitan-district-council/wolverhampton","Af Blakemore/Blakemore Foodservice","5152254","72.98","Provisions (Resale)","130134545","23/11/2016","Older People Provider Services","Bradley Lodge Resource Centre","R4102"
"Wolverhampton City Council","http://opendatacommunities.org/id/metropolitan-district-council/wolverhampton","Af Blakemore/Blakemore Foodservice","5152254","-72.98","Provisions (Resale)","130134545","23/11/2016","Older People Provider Services","Bradley Lodge Resource Centre","R4102"
"Wolverhampton City Council","http://opendatacommunities.org/id/metropolitan-district-council/wolverhampton","Af Blakemore/Blakemore Foodservice","5152254","62.72","Provisions (Resale)","130134545","23/11/2016","Older People Provider Services","Bradley Lodge Resource Centre","R4102"
"Wolverhampton City Council","http://opendatacommunities.org/id/metropolitan-district-council/wolverhampton","Af Blakemore/Blakemore Foodservice","5152254","10.26","Provisions (Resale)","130134545","23/11/2016","Older People Provider Services","Bradley Lodge Resource Centre","R4102"
"Wolverhampton City Council","http://opendatacommunities.org/id/metropolitan-district-council/wolverhampton","Af Blakemore/Blakemore Foodservice","5186640","347.62","Provisions (Resale)","130137993","23/11/2016","Older People Provider Services","Bradley Lodge Resource Centre","R4102"
"Wolverhampton City Council","http://opendatacommunities.org/id/metropolitan-district-council/wolverhampton","Af Blakemore/Blakemore Foodservice","5186640","-347.62","Provisions (Resale)","130137993","23/11/2016","Older People Provider Services","Bradley Lodge Resource Centre","R4102"
"Wolverhampton City Council","http://opendatacommunities.org/id/metropolitan-district-council/wolverhampton","Af Blakemore/Blakemore Foodservice","5186640","216.47","Provisions (Resale)","130137993","23/11/2016","Older People Provider Services","Bradley Lodge Resource Centre","R4102"
"Wolverhampton City Council","http://opendatacommunities.org/id/metropolitan-district-council/wolverhampton","Af Blakemore/Blakemore Foodservice","5186640","131.15","Provisions (Resale)","130137993","23/11/2016","Older People Provider Services","Bradley Lodge Resource Centre","R4102"
"Wolverhampton City Council","http://opendatacommunities.org/id/metropolitan-district-council/wolverhampton","Af Blakemore/Blakemore Foodservice","5186698","68.55","Provisions (Resale)","130137994","23/11/2016","Older People Provider Services","Bradley Lodge Resource Centre","R4102"
"Wolverhampton City Council","http://opendatacommunities.org/id/metropolitan-district-council/wolverhampton","Af Blakemore/Blakemore Foodservice","5186698","-68.55","Provisions (Resale)","130137994","23/11/2016","Older People Provider Services","Bradley Lodge Resource Centre","R4102"
"Wolverhampton City Council","http://opendatacommunities.org/id/metropolitan-district-council/wolverhampton","Af Blakemore/Blakemore Foodservice","5186698","51.10","Provisions (Resale)","130137994","23/11/2016","Older People Provider Services","Bradley Lodge Resource Centre","R4102"
"Wolverhampton City Council","http://opendatacommunities.org/id/metropolitan-district-council/wolverhampton","Af Blakemore/Blakemore Foodservice","5186698","17.45","Provisions (Resale)","130137994","23/11/2016","Older People Provider Services","Bradley Lodge Resource Centre","R4102"
"Wolverhampton City Council","http://opendatacommunities.org/id/metropolitan-district-council/wolverhampton","Af Blakemore/Blakemore Foodservice","WCC000201","648.63","Provisions (Not for resale)","130143841","30/11/2016","Leisure Services","WV Active Catering","R4101"
"Wolverhampton City Council","http://opendatacommunities.org/id/metropolitan-district-council/wolverhampton","Af Blakemore/Blakemore Foodservice","WCC000201","269.17","Provisions (Not for resale)","130143841","30/11/2016","Leisure Services","WV Active Catering","R4101"
"Wolverhampton City Council","http://opendatacommunities.org/id/metropolitan-district-council/wolverhampton","Af Blakemore/Blakemore Foodservice","WCA000032","772.94","Provisions (Not for resale)","130143840","30/11/2016","Leisure Services","WV Active Catering","R4101"
"Wolverhampton City Council","http://opendatacommunities.org/id/metropolitan-district-council/wolverhampton","Af Blakemore/Blakemore Foodservice","WCA000032","-772.94","Provisions (Not for resale)","130143840","30/11/2016","Leisure Services","WV Active Catering","R4101"
"Wolverhampton City Council","http://opendatacommunities.org/id/metropolitan-district-council/wolverhampton","Af Blakemore/Blakemore Foodservice","WCA000032","470.74","Provisions (Not for resale)","130143840","30/11/2016","Leisure Services","WV Active Catering","R4101"
"Wolverhampton City Council","http://opendatacommunities.org/id/metropolitan-district-council/wolverhampton","Af Blakemore/Blakemore Foodservice","WCA000032","302.20","Provisions (Not for resale)","130143840","30/11/2016","Leisure Services","WV Active Catering","R4101"
"Wolverhampton City Council","http://opendatacommunities.org/id/metropolitan-district-council/wolverhampton","Af Blakemore/Blakemore Foodservice","WCC000202","370.66","Provisions (Not for resale)","130143842","30/11/2016","Leisure Services","WV Active Catering","R4101"
"Wolverhampton City Council","http://opendatacommunities.org/id/metropolitan-district-council/wolverhampton","Af Blakemore/Blakemore Foodservice","WCC000202","-370.66","Provisions (Not for resale)","130143842","30/11/2016","Leisure Services","WV Active Catering","R4101"
"Wolverhampton City Council","http://opendatacommunities.org/id/metropolitan-district-council/wolverhampton","Af Blakemore/Blakemore Foodservice","WCC000202","344.76","Provisions (Not for resale)","130143842","30/11/2016","Leisure Services","WV Active Catering","R4101"
"Wolverhampton City Council","http://opendatacommunities.org/id/metropolitan-district-council/wolverhampton","Af Blakemore/Blakemore Foodservice","WCC000202","25.90","Provisions (Not for resale)","130143842","30/11/2016","Leisure Services","WV Active Catering","R4101"
"Wolverhampton City Council","http://opendatacommunities.org/id/metropolitan-district-council/wolverhampton","Af Blakemore/Blakemore Foodservice","WCA000035","1,402.98","Provisions (Not for resale)","130144284","30/11/2016","Leisure Services","WV Active Catering","R4101"
"Wolverhampton City Council","http://opendatacommunities.org/id/metropolitan-district-council/wolverhampton","Af Blakemore/Blakemore Foodservice","WCA000035","-1,402.98","Provisions (Not for resale)","130144284","30/11/2016","Leisure Services","WV Active Catering","R4101"
"Wolverhampton City Council","http://opendatacommunities.org/id/metropolitan-district-council/wolverhampton","Af Blakemore/Blakemore Foodservice","WCA000035","446.21","Provisions (Not for resale)","130144284","30/11/2016","Leisure Services","WV Active Catering","R4101"
"Wolverhampton City Council","http://opendatacommunities.org/id/metropolitan-district-council/wolverhampton","Af Blakemore/Blakemore Foodservice","WCA000035","956.77","Provisions (Not for resale)","130144284","30/11/2016","Leisure Services","WV Active Catering","R4101"
"Wolverhampton City Council","http://opendatacommunities.org/id/metropolitan-district-council/wolverhampton","Af Blakemore/Blakemore Foodservice","WCC000205","650.01","Provisions (Not for resale)","130144286","30/11/2016","Leisure Services","WV Active Catering","R4101"
"Wolverhampton City Council","http://opendatacommunities.org/id/metropolitan-district-council/wolverhampton","Af Blakemore/Blakemore Foodservice","WCC000205","-650.01","Provisions (Not for resale)","130144286","30/11/2016","Leisure Services","WV Active Catering","R4101"
"Wolverhampton City Council","http://opendatacommunities.org/id/metropolitan-district-council/wolverhampton","Af Blakemore/Blakemore Foodservice","WCC000205","465.23","Provisions (Not for resale)","130144286","30/11/2016","Leisure Services","WV Active Catering","R4101"
"Wolverhampton City Council","http://opendatacommunities.org/id/metropolitan-district-council/wolverhampton","Af Blakemore/Blakemore Foodservice","WCC000205","184.78","Provisions (Not for resale)","130144286","30/11/2016","Leisure Services","WV Active Catering","R4101"
"Wolverhampton City Council","http://opendatacommunities.org/id/metropolitan-district-council/wolverhampton","Af Blakemore/Blakemore Foodservice","WCC000206","-440.76","Provisions (Not for resale)","130144287","30/11/2016","Leisure Services","WV Active Catering","R4101"
"Wolverhampton City Council","http://opendatacommunities.org/id/metropolitan-district-council/wolverhampton","Af Blakemore/Blakemore Foodservice","WCC000206","49.43","Provisions (Not for resale)","130144287","30/11/2016","Leisure Services","WV Active Catering","R4101"
"Wolverhampton City Council","http://opendatacommunities.org/id/metropolitan-district-council/wolverhampton","Af Blakemore/Blakemore Foodservice","WCC000206","391.33","Provisions (Not for resale)","130144287","30/11/2016","Leisure Services","WV Active Catering","R4101"
"Wolverhampton City Council","http://opendatacommunities.org/id/metropolitan-district-council/wolverhampton","Af Blakemore/Blakemore Foodservice","WCC000206","440.76","Provisions (Not for resale)","130144287","30/11/2016","Leisure Services","WV Active Catering","R4101"
"Wolverhampton City Council","http://opendatacommunities.org/id/metropolitan-district-council/wolverhampton","Af Blakemore/Blakemore Foodservice","2599396","107.81","Provisions (Resale)","130143242","11/11/2016","Visitor Economy","Catering Overhead Account","R4102"
"Wolverhampton City Council","http://opendatacommunities.org/id/metropolitan-district-council/wolverhampton","Af Blakemore/Blakemore Foodservice","5248858","124.57","Provisions (Not for resale)","130142892","11/11/2016","Learning Disability Provider","Duke Street Bungalows","R4101"
"Wolverhampton City Council","http://opendatacommunities.org/id/metropolitan-district-council/wolverhampton","Af Blakemore/Blakemore Foodservice","5240243","174.91","Provisions (Not for resale)","130143743","09/11/2016","Learning Disability Provider","Duke Street Bungalows","R4101"
"Wolverhampton City Council","http://opendatacommunities.org/id/metropolitan-district-council/wolverhampton","Af Blakemore/Blakemore Foodservice","5240243","-174.91","Provisions (Not for resale)","130143743","09/11/2016","Learning Disability Provider","Duke Street Bungalows","R4101"
"Wolverhampton City Council","http://opendatacommunities.org/id/metropolitan-district-council/wolverhampton","Af Blakemore/Blakemore Foodservice","5240243","9.10","Provisions (Not for resale)","130143743","09/11/2016","Learning Disability Provider","Duke Street Bungalows","R4101"
"Wolverhampton City Council","http://opendatacommunities.org/id/metropolitan-district-council/wolverhampton","Af Blakemore/Blakemore Foodservice","5240243","165.81","Provisions (Not for resale)","130143743","09/11/2016","Learning Disability Provider","Duke Street Bungalows","R4101"
"Wolverhampton City Council","http://opendatacommunities.org/id/metropolitan-district-council/wolverhampton","Af Blakemore/Blakemore Foodservice","5232151","10.40","Provisions (Not for resale)","130144504","30/11/2016","Older People Provider Services","Blakenhall Resource Centre","R4101"
"Wolverhampton City Council","http://opendatacommunities.org/id/metropolitan-district-council/wolverhampton","Af Blakemore/Blakemore Foodservice","5232151","-10.40","Provisions (Not for resale)","130144504","30/11/2016","Older People Provider Services","Blakenhall Resource Centre","R4101"
"Wolverhampton City Council","http://opendatacommunities.org/id/metropolitan-district-council/wolverhampton","Af Blakemore/Blakemore Foodservice","5232151","8.24","Provisions (Not for resale)","130144504","30/11/2016","Older People Provider Services","Blakenhall Resource Centre","R4101"
"Wolverhampton City Council","http://opendatacommunities.org/id/metropolitan-district-council/wolverhampton","Af Blakemore/Blakemore Foodservice","5232151","2.16","Provisions (Not for resale)","130144504","30/11/2016","Older People Provider Services","Blakenhall Resource Centre","R4101"
"Wolverhampton City Council","http://opendatacommunities.org/id/metropolitan-district-council/wolverhampton","Af Blakemore/Blakemore Foodservice","5257274","267.80","Provisions (Not for resale)","130144507","30/11/2016","Older People Provider Services","Blakenhall Resource Centre","R4101"
"Wolverhampton City Council","http://opendatacommunities.org/id/metropolitan-district-council/wolverhampton","Af Blakemore/Blakemore Foodservice","5257274","-267.80","Provisions (Not for resale)","130144507","30/11/2016","Older People Provider Services","Blakenhall Resource Centre","R4101"
"Wolverhampton City Council","http://opendatacommunities.org/id/metropolitan-district-council/wolverhampton","Af Blakemore/Blakemore Foodservice","5257274","31.49","Provisions (Not for resale)","130144507","30/11/2016","Older People Provider Services","Blakenhall Resource Centre","R4101"
"Wolverhampton City Council","http://opendatacommunities.org/id/metropolitan-district-council/wolverhampton","Af Blakemore/Blakemore Foodservice","5257274","236.31","Provisions (Not for resale)","130144507","30/11/2016","Older People Provider Services","Blakenhall Resource Centre","R4101"
"Wolverhampton City Council","http://opendatacommunities.org/id/metropolitan-district-council/wolverhampton","Af Blakemore/Blakemore Foodservice","5257263","27.25","Provisions (Not for resale)","130144506","30/11/2016","Older People Provider Services","Blakenhall Resource Centre","R4101"
"Wolverhampton City Council","http://opendatacommunities.org/id/metropolitan-district-council/wolverhampton","Af Blakemore/Blakemore Foodservice","5257263","-27.25","Provisions (Not for resale)","130144506","30/11/2016","Older People Provider Services","Blakenhall Resource Centre","R4101"
"Wolverhampton City Council","http://opendatacommunities.org/id/metropolitan-district-council/wolverhampton","Af Blakemore/Blakemore Foodservice","5257263","6.18","Provisions (Not for resale)","130144506","30/11/2016","Older People Provider Services","Blakenhall Resource Centre","R4101"
"Wolverhampton City Council","http://opendatacommunities.org/id/metropolitan-district-council/wolverhampton","Af Blakemore/Blakemore Foodservice","5257263","21.07","Provisions (Not for resale)","130144506","30/11/2016","Older People Provider Services","Blakenhall Resource Centre","R4101"
"Wolverhampton City Council","http://opendatacommunities.org/id/metropolitan-district-council/wolverhampton","Af Blakemore/Blakemore Foodservice","2600852","205.21","Provisions (Resale)","130143243","23/11/2016","Visitor Economy","Catering Overhead Account","R4102"
"Wolverhampton City Council","http://opendatacommunities.org/id/metropolitan-district-council/wolverhampton","Af Blakemore/Blakemore Foodservice","4879291","575.00","Provisions (Not for resale)","130126726","30/11/2016","Older People Provider Services","Nelson Mandela House","R4101"
"Wolverhampton City Council","http://opendatacommunities.org/id/metropolitan-district-council/wolverhampton","Af Blakemore/Blakemore Foodservice","4879291","266.68","Provisions (Not for resale)","130126726","30/11/2016","Older People Provider Services","Nelson Mandela House","R4101"
"Wolverhampton City Council","http://opendatacommunities.org/id/metropolitan-district-council/wolverhampton","Af Blakemore/Blakemore Foodservice","4821820","692.81","Provisions (Not for resale)","130126493","30/11/2016","Older People Provider Services","Nelson Mandela House","R4101"
"Wolverhampton City Council","http://opendatacommunities.org/id/metropolitan-district-council/wolverhampton","Af Blakemore/Blakemore Foodservice","5241536","195.56","Provisions (Not for resale)","130142449","04/11/2016","Learning Disability Provider","Duke Street Bungalows","R4101"
"Wolverhampton City Council","http://opendatacommunities.org/id/metropolitan-district-council/wolverhampton","Af Blakemore/Blakemore Foodservice","5241536","-195.56","Provisions (Not for resale)","130142449","04/11/2016","Learning Disability Provider","Duke Street Bungalows","R4101"
"Wolverhampton City Council","http://opendatacommunities.org/id/metropolitan-district-council/wolverhampton","Af Blakemore/Blakemore Foodservice","5241536","166.96","Provisions (Not for resale)","130142449","04/11/2016","Learning Disability Provider","Duke Street Bungalows","R4101"
"Wolverhampton City Council","http://opendatacommunities.org/id/metropolitan-district-council/wolverhampton","Af Blakemore/Blakemore Foodservice","5241536","28.60","Provisions (Not for resale)","130142449","04/11/2016","Learning Disability Provider","Duke Street Bungalows","R4101"
"Wolverhampton City Council","http://opendatacommunities.org/id/metropolitan-district-council/wolverhampton","Af Blakemore/Blakemore Foodservice","5238257","270.14","Provisions (Not for resale)","130142553","04/11/2016","Learning Disability Provider","Duke Street Bungalows","R4101"
"Wolverhampton City Council","http://opendatacommunities.org/id/metropolitan-district-council/wolverhampton","Af Blakemore/Blakemore Foodservice","5238257","-270.14","Provisions (Not for resale)","130142553","04/11/2016","Learning Disability Provider","Duke Street Bungalows","R4101"
"Wolverhampton City Council","http://opendatacommunities.org/id/metropolitan-district-council/wolverhampton","Af Blakemore/Blakemore Foodservice","5238257","32.92","Provisions (Not for resale)","130142553","04/11/2016","Learning Disability Provider","Duke Street Bungalows","R4101"
"Wolverhampton City Council","http://opendatacommunities.org/id/metropolitan-district-council/wolverhampton","Af Blakemore/Blakemore Foodservice","5238257","237.22","Provisions (Not for resale)","130142553","04/11/2016","Learning Disability Provider","Duke Street Bungalows","R4101"
"Wolverhampton City Council","http://opendatacommunities.org/id/metropolitan-district-council/wolverhampton","Age UK Wolverhampton","CIT/2016-17/Q1","12,013.00","Grant Payments","130144940","11/11/2016","Older People Commissioning","Older People Commissioning","R4700"
"Wolverhampton City Council","http://opendatacommunities.org/id/metropolitan-district-council/wolverhampton","Aggregate Industries UK Limited","23977235","631.14","Materials","130143457","25/11/2016","Highways Maintenance","Patching","R4007"
"Wolverhampton City Council","http://opendatacommunities.org/id/metropolitan-district-council/wolverhampton","Agilisys Limited","1221769","2,475.00","Computing - Purchase of Software","130141364","02/11/2016","Revenues & Benefits","Debt Management","R4531"
"Wolverhampton City Council","http://opendatacommunities.org/id/metropolitan-district-council/wolverhampton","Agilisys Limited","1221759","11,200.00","Computing - Purchase of Software","130141363","02/11/2016","Human Resources","Centralised Training","R4531"
"Wolverhampton City Council","http://opendatacommunities.org/id/metropolitan-district-council/wolverhampton","Agilisys Limited","1222054","3,175.00","Computing - Purchase of Software","130146063","30/11/2016","Human Resources","Centralised Training","R4531"
"Wolverhampton City Council","http://opendatacommunities.org/id/metropolitan-district-council/wolverhampton","T Bailey","00025","1,150.00","TPP - Maintenance Contractor - General","190282022","04/11/2016","Parking Services","Cycling Schemes - Bikeability","R5720"
"Wolverhampton City Council","http://opendatacommunities.org/id/metropolitan-district-council/wolverhampton","Aidapt Bathrooms Limited","267101","49.50","Equipment - Purchase","130146312","23/11/2016","Independent Living Service","Independent Living Service","R4000"
"Wolverhampton City Council","http://opendatacommunities.org/id/metropolitan-district-council/wolverhampton","Aidapt Bathrooms Limited","266768","99.00","Equipment - Purchase","130145687","18/11/2016","Independent Living Service","Independent Living Service","R4000"
"Wolverhampton City Council","http://opendatacommunities.org/id/metropolitan-district-council/wolverhampton","Aidservice Limited","91679","389.30","Equipment - Purchase","130144019","11/11/2016","Independent Living Service","Independent Living Service","R4000"
"Wolverhampton City Council","http://opendatacommunities.org/id/metropolitan-district-council/wolverhampton","Aidservice Limited","91533","389.30","Equipment - Purchase","130140320","02/11/2016","Independent Living Service","Independent Living Service","R4000"
"Wolverhampton City Council","http://opendatacommunities.org/id/metropolitan-district-council/wolverhampton","Aidservice Limited","91608","1,040.00","Equipment - Purchase","130141648","04/11/2016","Independent Living Service","Independent Living Service","R4000"
"Wolverhampton City Council","http://opendatacommunities.org/id/metropolitan-district-council/wolverhampton","Aidservice Limited","91615","1,100.00","Equipment - Purchase","130141649","04/11/2016","Independent Living Service","Independent Living Service","R4000"
"Wolverhampton City Council","http://opendatacommunities.org/id/metropolitan-district-council/wolverhampton","Airport Express West Midlands Limited","1421","915.04","Client Transport","130143212","04/11/2016","School Planning & Resources","Secondary- Transport","R3042"
"Wolverhampton City Council","http://opendatacommunities.org/id/metropolitan-district-council/wolverhampton","Airport Express West Midlands Limited","1420","1,200.00","Client Transport","130143436","04/11/2016","School Planning & Resources","Special - Transport","R3042"
"Wolverhampton City Council","http://opendatacommunities.org/id/metropolitan-district-council/wolverhampton","Airport Express West Midlands Limited","1419","750.00","Client Transport","130143211","04/11/2016","School Planning & Resources","Special - Transport","R3042"
"Wolverhampton City Council","http://opendatacommunities.org/id/metropolitan-district-council/wolverhampton","Airport-Link","BDW/044","1,520.00","Client Transport","130144025","09/11/2016","Schools","Pupil Referral Units ISB","R3042"
"Wolverhampton City Council","http://opendatacommunities.org/id/metropolitan-district-council/wolverhampton","Airport-Link","BDW/043","1,520.00","Client Transport","130144227","09/11/2016","Schools","Pupil Referral Units ISB","R3042"
"Wolverhampton City Council","http://opendatacommunities.org/id/metropolitan-district-council/wolverhampton","Albert Jagger Limited","1156082","46.20","Equipment - Purchase","190283532","11/11/2016","Fleet Services","Fleet Management","R4000"
"Wolverhampton City Council","http://opendatacommunities.org/id/metropolitan-district-council/wolverhampton","Albrighton Feeds Limited","32327","329.30","Provisions (Not for resale)","130147109","30/11/2016","Environmental Maintenance","Pendeford Nature Reserve","R4101"
"Wolverhampton City Council","http://opendatacommunities.org/id/metropolitan-district-council/wolverhampton","Albrighton Feeds Limited","32327","5.00","Materials","130147109","30/11/2016","Environmental Maintenance","Pendeford Nature Reserve","R4007"
"Wolverhampton City Council","http://opendatacommunities.org/id/metropolitan-district-council/wolverhampton","Aldridge Trimming","24712","180.00","Equipment - Purchase","190286039","18/11/2016","Fleet Services","Fleet Management","R4000"
"Wolverhampton City Council","http://opendatacommunities.org/id/metropolitan-district-council/wolverhampton","Aldridge Trimming","24712","140.00","Equipment - Purchase","190286039","18/11/2016","Fleet Services","Fleet Management","R4000"
"Wolverhampton City Council","http://opendatacommunities.org/id/metropolitan-district-council/wolverhampton","Alemba Limited","INV00000273","23,141.54","Computing - Maint Agreements","130140150","02/11/2016","ICTS","Strategic ICTS (ICT Service Budget)","R4534"
"Wolverhampton City Council","http://opendatacommunities.org/id/metropolitan-district-council/wolverhampton","Alice Whyley Creative Wonderland","HS6.0","650.00","Services - Professional Fees","130141055","04/11/2016","Mental Health Commissioning","Head Start Wolverhampton","R4400"
"Wolverhampton City Council","http://opendatacommunities.org/id/metropolitan-district-council/wolverhampton","Alice Whyley Creative Wonderland","27","1,500.00","Services - Consultants","130146522","25/11/2016","School Planning & Resources","Technical Support","R4404"
"Wolverhampton City Council","http://opendatacommunities.org/id/metropolitan-district-council/wolverhampton","Alice Whyley Creative Wonderland","27","-1,500.00","Services - Consultants","130146522","25/11/2016","School Planning & Resources","Technical Support","R4404"
"Wolverhampton City Council","http://opendatacommunities.org/id/metropolitan-district-council/wolverhampton","Alice Whyley Creative Wonderland","27","1,500.00","Services - Consultants","130146522","25/11/2016","School Planning & Resources","Technical Support","R4404"
"Wolverhampton City Council","http://opendatacommunities.org/id/metropolitan-district-council/wolverhampton","Alice Whyley Creative Wonderland","26","1,500.00","Services - Consultants","130141171","04/11/2016","School Planning & Resources","Technical Support","R4404"
"Wolverhampton City Council","http://opendatacommunities.org/id/metropolitan-district-council/wolverhampton","All Saints Action Network Limited","102906","200.00","Training Expenses","130144352","16/11/2016","Skills","Connexions Contract","R1650"
"Wolverhampton City Council","http://opendatacommunities.org/id/metropolitan-district-council/wolverhampton","Allstar Business Solutions Limited","E2007548208","1.65","Petrol","190288899","25/11/2016","Fleet Services","Fleet Management","R3000"
"Wolverhampton City Council","http://opendatacommunities.org/id/metropolitan-district-council/wolverhampton","Allstar Business Solutions Limited","E2007548208","1,276.17","Petrol","190288899","25/11/2016","Fleet Services","Fleet Management","R3000"
"Wolverhampton City Council","http://opendatacommunities.org/id/metropolitan-district-council/wolverhampton","Allstar Business Solutions Limited","E2007549448","1.65","Petrol","190288900","25/11/2016","Fleet Services","Fleet Management","R3000"
"Wolverhampton City Council","http://opendatacommunities.org/id/metropolitan-district-council/wolverhampton","Allstar Business Solutions Limited","E2007549448","35.77","Petrol","190288900","25/11/2016","Fleet Services","Fleet Management","R3000"
"Wolverhampton City Council","http://opendatacommunities.org/id/metropolitan-district-council/wolverhampton","Allstar Business Solutions Limited","E2007473528","1,155.25","Petrol","190281954","04/11/2016","Fleet Services","Fleet Management","R3000"
"Wolverhampton City Council","http://opendatacommunities.org/id/metropolitan-district-council/wolverhampton","Alpha Parking Limited","13872","1,895.00","Training Expenses","130141598","02/11/2016","Parking Services","Parking Enforcement","R1650"
"Wolverhampton City Council","http://opendatacommunities.org/id/metropolitan-district-council/wolverhampton","Alphabiolabs","9060","157.50","Services - Professional Fees","130142905","02/11/2016","Legal Services","Centralised External Legal Costs","R4400"
"Wolverhampton City Council","http://opendatacommunities.org/id/metropolitan-district-council/wolverhampton","Alphatec 2000 Limited","8426","2,020.00","Equipment - R & M","130145904","30/11/2016","ICTS","Document Centre - General","R4003"
"Wolverhampton City Council","http://opendatacommunities.org/id/metropolitan-district-council/wolverhampton","Alzheimer�S Society","PSI136763","18,439.75","TPP - Social Care Support Services","130143149","23/11/2016","Older People Commissioning","Older People Commissioning","R5501"
"Wolverhampton City Council","http://opendatacommunities.org/id/metropolitan-district-council/wolverhampton","Angel Springs Limited","3189437","29.16","Provisions (Not for resale)","130143472","04/11/2016","Democratic Services","Members Expenses","R4101"
"Wolverhampton City Council","http://opendatacommunities.org/id/metropolitan-district-council/wolverhampton","Angel Springs Limited","3299072","360.52","Provisions (Not for resale)","130145024","11/11/2016","Leisure Services","Aldersley Leisure Village","R4101"
"Wolverhampton City Council","http://opendatacommunities.org/id/metropolitan-district-council/wolverhampton","Angel Springs Limited","3342241","25.92","Provisions (Not for resale)","130145706","25/11/2016","Highways Maintenance","Patching","R4101"
"Wolverhampton City Council","http://opendatacommunities.org/id/metropolitan-district-council/wolverhampton","Angel Springs Limited","3342204","20.02","Provisions (Not for resale)","130145699","25/11/2016","Parking Services","Car Parks Operational Staff","R4101"
"Wolverhampton City Council","http://opendatacommunities.org/id/metropolitan-district-council/wolverhampton","Angel Springs Limited","3342205","19.44","Provisions (Not for resale)","130145700","25/11/2016","Parking Services","Parking Enforcement","R4101"
"Wolverhampton City Council","http://opendatacommunities.org/id/metropolitan-district-council/wolverhampton","Angel Springs Limited","3342213","13.75","Provisions (Not for resale)","130145703","25/11/2016","Skills","Connexions Contract","R4101"
"Wolverhampton City Council","http://opendatacommunities.org/id/metropolitan-district-council/wolverhampton","Angel Springs Limited","3342211","15.64","Provisions (Not for resale)","130145702","25/11/2016","Facilities Management","Victoria Square, Block 11","R4101"
"Wolverhampton City Council","http://opendatacommunities.org/id/metropolitan-district-council/wolverhampton","Angel Springs Limited","3342214","9.72","Provisions (Not for resale)","130145704","25/11/2016","Operation & Maintenance of Existing Network","Surface Water Management","R4101"
"Wolverhampton City Council","http://opendatacommunities.org/id/metropolitan-district-council/wolverhampton","Angel Springs Limited","3342245","15.64","Provisions (Not for resale)","130145230","25/11/2016","Facilities Management","Culwell Street Depot","R4101"
"Wolverhampton City Council","http://opendatacommunities.org/id/metropolitan-district-council/wolverhampton","Angel Springs Limited","3342206","10.30","Provisions (Not for resale)","130145701","25/11/2016","Parking Services","Shopmobility","R4101"
"Wolverhampton City Council","http://opendatacommunities.org/id/metropolitan-district-council/wolverhampton","Angel Springs Limited","3342250","192.52","Provisions (Not for resale)","130145231","25/11/2016","Fleet Services","Fleet Management","R4101"
"Wolverhampton City Council","http://opendatacommunities.org/id/metropolitan-district-council/wolverhampton","Angel Springs Limited","3342239","165.00","Provisions (Not for resale)","130145705","25/11/2016","Facilities Management","Civic Centre","R4101"
"Wolverhampton City Council","http://opendatacommunities.org/id/metropolitan-district-council/wolverhampton","Angel Springs Limited","3342210","40.04","Provisions (Not for resale)","130145229","25/11/2016","Fleet Services","Passenger Transport - General","R4101"
"Wolverhampton City Council","http://opendatacommunities.org/id/metropolitan-district-council/wolverhampton","Anglia Dna Services Limited","41673","247.50","Services - Professional Fees","130132691","02/11/2016","Child Protection","Head of Service - CINCP","R4400"
"Wolverhampton City Council","http://opendatacommunities.org/id/metropolitan-district-council/wolverhampton","Anglia Dna Services Limited","41942","173.33","Services - Professional Fees","130132692","02/11/2016","Child Protection","Head of Service - CINCP","R4400"
"Wolverhampton City Council","http://opendatacommunities.org/id/metropolitan-district-council/wolverhampton","Anglia Dna Services Limited","43620","158.00","Services - Professional Fees","130139881","02/11/2016","Child Protection","Head of Service - CINCP","R4400"
"Wolverhampton City Council","http://opendatacommunities.org/id/metropolitan-district-council/wolverhampton","Anglia Dna Services Limited","43609","33.33","Services - Professional Fees","130143074","02/11/2016","Legal Services","Centralised External Legal Costs","R4400"
"Wolverhampton City Council","http://opendatacommunities.org/id/metropolitan-district-council/wolverhampton","Anglia Dna Services Limited","42698","166.33","Services - Professional Fees","130132952","02/11/2016","Legal Services","Centralised External Legal Costs","R4400"
"Wolverhampton City Council","http://opendatacommunities.org/id/metropolitan-district-council/wolverhampton","Anglia Dna Services Limited","40558","118.50","Services - Professional Fees","130143070","02/11/2016","Legal Services","Centralised External Legal Costs","R4400"
"Wolverhampton City Council","http://opendatacommunities.org/id/metropolitan-district-council/wolverhampton","Anglia Dna Services Limited","43476","106.00","Services - Professional Fees","130138816","18/11/2016","Child Protection","Head of Service - CINCP","R4400"
"Wolverhampton City Council","http://opendatacommunities.org/id/metropolitan-district-council/wolverhampton","Apcoa Parking (UK) Limited","244881","49,900.02","TPP - Traffic Management","130144396","25/11/2016","Parking Services","Parking Enforcement","R5050"
"Wolverhampton City Council","http://opendatacommunities.org/id/metropolitan-district-council/wolverhampton","Apetito Limited","9001830067","1,200.92","Provisions (Resale)","130141455","04/11/2016","Catering","Meals on Wheels","R4102"
"Wolverhampton City Council","http://opendatacommunities.org/id/metropolitan-district-council/wolverhampton","Apetito Limited","9001826674","959.30","Provisions (Resale)","130140819","04/11/2016","Catering","Meals on Wheels","R4102"
"Wolverhampton City Council","http://opendatacommunities.org/id/metropolitan-district-council/wolverhampton","Apetito Limited","9001845063","1,330.23","Provisions (Resale)","130144016","30/11/2016","Catering","Meals on Wheels","R4102"
"Wolverhampton City Council","http://opendatacommunities.org/id/metropolitan-district-council/wolverhampton","Apetito Limited","9001847841","1,188.33","Provisions (Resale)","130144703","30/11/2016","Catering","Meals on Wheels","R4102"
"Wolverhampton City Council","http://opendatacommunities.org/id/metropolitan-district-council/wolverhampton","Apetito Limited","9001840736","1,332.18","Provisions (Resale)","130143303","23/11/2016","Catering","Meals on Wheels","R4102"
"Wolverhampton City Council","http://opendatacommunities.org/id/metropolitan-district-council/wolverhampton","Apetito Limited","9001837227","968.52","Provisions (Resale)","130142695","23/11/2016","Catering","Meals on Wheels","R4102"
"Wolverhampton City Council","http://opendatacommunities.org/id/metropolitan-district-council/wolverhampton","Apetito Limited","9001823787","1,122.23","Provisions (Resale)","130140314","02/11/2016","Catering","Meals on Wheels","R4102"
"Wolverhampton City Council","http://opendatacommunities.org/id/metropolitan-district-council/wolverhampton","Apetito Limited","9001825146","1,112.29","Provisions (Resale)","130140564","02/11/2016","Catering","Meals on Wheels","R4102"
"Wolverhampton City Council","http://opendatacommunities.org/id/metropolitan-district-council/wolverhampton","Apetito Limited","9001831952","1,177.77","Provisions (Resale)","130141796","11/11/2016","Catering","Meals on Wheels","R4102"
"Wolverhampton City Council","http://opendatacommunities.org/id/metropolitan-district-council/wolverhampton","Apetito Limited","9001835456","1,394.55","Provisions (Resale)","130142467","11/11/2016","Catering","Meals on Wheels","R4102"
"Wolverhampton City Council","http://opendatacommunities.org/id/metropolitan-district-council/wolverhampton","Argus Fire Protection Co.Limited","36464","450.00","Equipment - Purchase","130144479","23/11/2016","Facilities Management","Civic Centre","R4000"
"Wolverhampton City Council","http://opendatacommunities.org/id/metropolitan-district-council/wolverhampton","Argus Fire Protection Co.Limited","36421","600.00","Equipment - Purchase","130144478","23/11/2016","Facilities Management","Civic Centre","R4000"
"Wolverhampton City Council","http://opendatacommunities.org/id/metropolitan-district-council/wolverhampton","Arjohuntleigh UK","71225","508.00","Equipment - Purchase","130140560","02/11/2016","Learning Disability Provider","Learning Disabilities Management","R4000"
"Wolverhampton City Council","http://opendatacommunities.org/id/metropolitan-district-council/wolverhampton","Arnold Clark Finance Limited","HI2083316","18.12","Hire of Vehicles","190286126","18/11/2016","Fleet Services","Fleet Management","R3200"
"Wolverhampton City Council","http://opendatacommunities.org/id/metropolitan-district-council/wolverhampton","Arnold Clark Finance Limited","HI2084297","53.12","Hire of Vehicles","190286127","18/11/2016","Fleet Services","Fleet Management","R3200"
"Wolverhampton City Council","http://opendatacommunities.org/id/metropolitan-district-council/wolverhampton","Arnold Clark Finance Limited","HI2084299","41.88","Hire of Vehicles","190286128","18/11/2016","Fleet Services","Fleet Management","R3200"
"Wolverhampton City Council","http://opendatacommunities.org/id/metropolitan-district-council/wolverhampton","Arnold Clark Finance Limited","HI2097091","15.15","Hire of Vehicles","190289502","30/11/2016","Fleet Services","Fleet Management","R3200"
"Wolverhampton City Council","http://opendatacommunities.org/id/metropolitan-district-council/wolverhampton","Arnold Clark Finance Limited","HI2097093","18.12","Hire of Vehicles","190289503","30/11/2016","Fleet Services","Fleet Management","R3200"
"Wolverhampton City Council","http://opendatacommunities.org/id/metropolitan-district-council/wolverhampton","Arnold Clark Finance Limited","HI2097094","15.15","Hire of Vehicles","190289504","30/11/2016","Fleet Services","Fleet Management","R3200"
"Wolverhampton City Council","http://opendatacommunities.org/id/metropolitan-district-council/wolverhampton","Arnold Clark Finance Limited","HI2099034","15.15","Hire of Vehicles","190289505","30/11/2016","Fleet Services","Fleet Management","R3200"
"Wolverhampton City Council","http://opendatacommunities.org/id/metropolitan-district-council/wolverhampton","Arnold Clark Finance Limited","HI2100243","36.24","Hire of Vehicles","190289506","30/11/2016","Fleet Services","Fleet Management","R3200"
"Wolverhampton City Council","http://opendatacommunities.org/id/metropolitan-district-council/wolverhampton","Arnold Clark Finance Limited","HI2100244","15.15","Hire of Vehicles","190289507","30/11/2016","Fleet Services","Fleet Management","R3200"
"Wolverhampton City Council","http://opendatacommunities.org/id/metropolitan-district-council/wolverhampton","Arthur Brett (Catering) Limited","ID893969","13.26","Provisions (Resale)","130143349","09/11/2016","Learning Disability Provider","Duke Street Bungalows","R4102"
"Wolverhampton City Council","http://opendatacommunities.org/id/metropolitan-district-council/wolverhampton","Arthur Brett (Catering) Limited","ID894572","8.62","Provisions (Resale)","130143350","09/11/2016","Learning Disability Provider","Duke Street Bungalows","R4102"
"Wolverhampton City Council","http://opendatacommunities.org/id/metropolitan-district-council/wolverhampton","Arthur Brett (Catering) Limited","ID901603","17.28","Provisions (Resale)","130147171","30/11/2016","Learning Disability Provider","Duke Street Bungalows","R4102"
"Wolverhampton City Council","http://opendatacommunities.org/id/metropolitan-district-council/wolverhampton","Arthur Brett (Catering) Limited","ID859468","3.95","Provisions (Resale)","130145361","30/11/2016","Learning Disability Provider","Duke Street Bungalows","R4102"
"Wolverhampton City Council","http://opendatacommunities.org/id/metropolitan-district-council/wolverhampton","Arthur Brett (Catering) Limited","ID859420","20.79","Provisions (Resale)","130145360","30/11/2016","Learning Disability Provider","Duke Street Bungalows","R4102"
"Wolverhampton City Council","http://opendatacommunities.org/id/metropolitan-district-council/wolverhampton","Arthur Brett (Catering) Limited","ID902092","89.70","Provisions (Resale)","130147172","30/11/2016","Visitor Economy","Bantock - Tea Rooms","R4102"
"Wolverhampton City Council","http://opendatacommunities.org/id/metropolitan-district-council/wolverhampton","Arthur Brett (Catering) Limited","ID902140","136.66","Provisions (Resale)","130147173","30/11/2016","Visitor Economy","Art Gallery Tea Room","R4102"
"Wolverhampton City Council","http://opendatacommunities.org/id/metropolitan-district-council/wolverhampton","Arthur Brett (Catering) Limited","ID901598","7.90","Provisions (Resale)","130147170","30/11/2016","Learning Disability Provider","Duke Street Bungalows","R4102"
"Wolverhampton City Council","http://opendatacommunities.org/id/metropolitan-district-council/wolverhampton","Arthur Brett (Catering) Limited","3110161","24,214.41","Provisions (Resale)","130147105","30/11/2016","Catering","Education Catering - General Overheads","R4102"
"Wolverhampton City Council","http://opendatacommunities.org/id/metropolitan-district-council/wolverhampton","Arthur Brett (Catering) Limited","3110162","133.60","Provisions (Resale)","130147106","30/11/2016","Catering","Meals on Wheels","R4102"
"Wolverhampton City Council","http://opendatacommunities.org/id/metropolitan-district-council/wolverhampton","Arthur Brett (Catering) Limited","ID900124","20.74","Provisions (Resale)","130146802","30/11/2016","Older People Provider Services","Blakenhall Resource Centre","R4102"
"Wolverhampton City Council","http://opendatacommunities.org/id/metropolitan-district-council/wolverhampton","Arthur Brett (Catering) Limited","ID901228","1.79","Provisions (Resale)","130146590","30/11/2016","Leisure Services","WV Active Catering","R4102"
"Wolverhampton City Council","http://opendatacommunities.org/id/metropolitan-district-council/wolverhampton","Arthur Brett (Catering) Limited","ID901033","88.53","Provisions (Resale)","130146589","30/11/2016","Visitor Economy","Art Gallery Tea Room","R4102"
"Wolverhampton City Council","http://opendatacommunities.org/id/metropolitan-district-council/wolverhampton","Arthur Brett (Catering) Limited","ID894319","18.33","Provisions (Resale)","130143113","30/11/2016","Older People Provider Services","Blakenhall Resource Centre","R4102"
"Wolverhampton City Council","http://opendatacommunities.org/id/metropolitan-district-council/wolverhampton","Arthur Brett (Catering) Limited","ID893792","9.47","Provisions (Resale)","130142613","30/11/2016","Older People Provider Services","Blakenhall Resource Centre","R4102"
"Wolverhampton City Council","http://opendatacommunities.org/id/metropolitan-district-council/wolverhampton","Arthur Brett (Catering) Limited","ID899995","8.84","Provisions (Resale)","130146801","30/11/2016","Learning Disability Provider","Duke Street Bungalows","R4102"
"Wolverhampton City Council","http://opendatacommunities.org/id/metropolitan-district-council/wolverhampton","Arthur Brett (Catering) Limited","ID899992","7.31","Provisions (Resale)","130146587","30/11/2016","Learning Disability Provider","Duke Street Bungalows","R4102"
"Wolverhampton City Council","http://opendatacommunities.org/id/metropolitan-district-council/wolverhampton","Arthur Brett (Catering) Limited","ID878955","61.15","Provisions (Resale)","130135710","02/11/2016","Leisure Services","WV Active Catering","R4102"
"Wolverhampton City Council","http://opendatacommunities.org/id/metropolitan-district-council/wolverhampton","Arthur Brett (Catering) Limited","ID878959","56.62","Provisions (Resale)","130135712","02/11/2016","Leisure Services","WV Active Catering","R4102"
"Wolverhampton City Council","http://opendatacommunities.org/id/metropolitan-district-council/wolverhampton","Arthur Brett (Catering) Limited","ID844229","45.45","Provisions (Resale)","130142608","02/11/2016","Older People Provider Services","Bradley Lodge Resource Centre","R4102"
"Wolverhampton City Council","http://opendatacommunities.org/id/metropolitan-district-council/wolverhampton","Arthur Brett (Catering) Limited","ID846008","50.50","Provisions (Resale)","130142609","02/11/2016","Older People Provider Services","Bradley Lodge Resource Centre","R4102"
"Wolverhampton City Council","http://opendatacommunities.org/id/metropolitan-district-council/wolverhampton","Arthur Brett (Catering) Limited","ID892758","46.58","Provisions (Resale)","130142779","02/11/2016","Older People Provider Services","Bradley Lodge Resource Centre","R4102"
"Wolverhampton City Council","http://opendatacommunities.org/id/metropolitan-district-council/wolverhampton","Arthur Brett (Catering) Limited","ID892578","17.61","Provisions (Resale)","130141824","02/11/2016","Leisure Services","WV Active Catering","R4102"
"Wolverhampton City Council","http://opendatacommunities.org/id/metropolitan-district-council/wolverhampton","Arthur Brett (Catering) Limited","ID892030","6.89","Provisions (Resale)","130142497","02/11/2016","Learning Disability Provider","Duke Street Bungalows","R4102"
"Wolverhampton City Council","http://opendatacommunities.org/id/metropolitan-district-council/wolverhampton","Arthur Brett (Catering) Limited","ID892028","15.28","Provisions (Resale)","130142496","02/11/2016","Learning Disability Provider","Duke Street Bungalows","R4102"
"Wolverhampton City Council","http://opendatacommunities.org/id/metropolitan-district-council/wolverhampton","Arthur Brett (Catering) Limited","ID844228","37.52","Provisions (Resale)","130142607","02/11/2016","Older People Provider Services","Bradley Lodge Resource Centre","R4102"
"Wolverhampton City Council","http://opendatacommunities.org/id/metropolitan-district-council/wolverhampton","Arthur Brett (Catering) Limited","ID829401","13.86","Provisions (Resale)","130142601","02/11/2016","Learning Disability Provider","Duke Street Bungalows","R4102"
"Wolverhampton City Council","http://opendatacommunities.org/id/metropolitan-district-council/wolverhampton","Arthur Brett (Catering) Limited","ID829446","16.66","Provisions (Resale)","130142602","02/11/2016","Learning Disability Provider","Duke Street Bungalows","R4102"
"Wolverhampton City Council","http://opendatacommunities.org/id/metropolitan-district-council/wolverhampton","Arthur Brett (Catering) Limited","ID834849","6.68","Provisions (Resale)","130142604","02/11/2016","Learning Disability Provider","Duke Street Bungalows","R4102"
"Wolverhampton City Council","http://opendatacommunities.org/id/metropolitan-district-council/wolverhampton","Arthur Brett (Catering) Limited","ID834852","6.69","Provisions (Resale)","130142605","02/11/2016","Learning Disability Provider","Duke Street Bungalows","R4102"
"Wolverhampton City Council","http://opendatacommunities.org/id/metropolitan-district-council/wolverhampton","Arthur Brett (Catering) Limited","ID892043","16.19","Provisions (Resale)","130142946","04/11/2016","Learning Disability Provider","Duke Street Bungalows","R4102"
"Wolverhampton City Council","http://opendatacommunities.org/id/metropolitan-district-council/wolverhampton","Arthur Brett (Catering) Limited","ID892036","7.14","Provisions (Resale)","130142945","04/11/2016","Learning Disability Provider","Duke Street Bungalows","R4102"
"Wolverhampton City Council","http://opendatacommunities.org/id/metropolitan-district-council/wolverhampton","Arthur Brett (Catering) Limited","ID894276","30.52","Provisions (Resale)","130142947","04/11/2016","Visitor Economy","Bantock - Tea Rooms","R4102"
"Wolverhampton City Council","http://opendatacommunities.org/id/metropolitan-district-council/wolverhampton","Arthur Brett (Catering) Limited","ID894659","7.31","Provisions (Resale)","130143351","04/11/2016","Learning Disability Provider","Duke Street Bungalows","R4102"
"Wolverhampton City Council","http://opendatacommunities.org/id/metropolitan-district-council/wolverhampton","Arthur Brett (Catering) Limited","ID894673","8.62","Provisions (Resale)","130143352","04/11/2016","Learning Disability Provider","Duke Street Bungalows","R4102"
"Wolverhampton City Council","http://opendatacommunities.org/id/metropolitan-district-council/wolverhampton","Arthur Brett (Catering) Limited","ID894559","115.51","Provisions (Resale)","130143114","04/11/2016","Visitor Economy","Bantock - Tea Rooms","R4102"
"Wolverhampton City Council","http://opendatacommunities.org/id/metropolitan-district-council/wolverhampton","Arthur Brett (Catering) Limited","ID894311","22.60","Provisions (Resale)","130142948","04/11/2016","Visitor Economy","Art Gallery Tea Room","R4102"
"Wolverhampton City Council","http://opendatacommunities.org/id/metropolitan-district-council/wolverhampton","Arthur Brett (Catering) Limited","ID894378","4.20","Provisions (Resale)","130142949","04/11/2016","Visitor Economy","Bantock - Tea Rooms","R4102"
"Wolverhampton City Council","http://opendatacommunities.org/id/metropolitan-district-council/wolverhampton","Arthur Brett (Catering) Limited","CN30410","-8.62","Provisions (Resale)","130143521","04/11/2016","Learning Disability Provider","Duke Street Bungalows","R4102"
"Wolverhampton City Council","http://opendatacommunities.org/id/metropolitan-district-council/wolverhampton","Arthur Brett (Catering) Limited","CN30411","-7.31","Provisions (Resale)","130143522","04/11/2016","Learning Disability Provider","Duke Street Bungalows","R4102"
"Wolverhampton City Council","http://opendatacommunities.org/id/metropolitan-district-council/wolverhampton","Arthur Brett (Catering) Limited","ID893042","2.78","Provisions (Resale)","130142305","04/11/2016","Visitor Economy","Bantock - Tea Rooms","R4102"
"Wolverhampton City Council","http://opendatacommunities.org/id/metropolitan-district-council/wolverhampton","Arthur Brett (Catering) Limited","ID894000","93.90","Provisions (Resale)","130142780","04/11/2016","Visitor Economy","Art Gallery Tea Room","R4102"
"Wolverhampton City Council","http://opendatacommunities.org/id/metropolitan-district-council/wolverhampton","Arthur Brett (Catering) Limited","ID894119","94.21","Provisions (Resale)","130142782","04/11/2016","Visitor Economy","Bantock - Tea Rooms","R4102"
"Wolverhampton City Council","http://opendatacommunities.org/id/metropolitan-district-council/wolverhampton","Arthur Brett (Catering) Limited","WI902436","421.52","Provisions (Resale)","130128177","04/11/2016","Contracts","Children Diet and Physical Activity","R4102"
"Wolverhampton City Council","http://opendatacommunities.org/id/metropolitan-district-council/wolverhampton","Arthur Brett (Catering) Limited","ID894562","45.19","Provisions (Resale)","130143115","04/11/2016","Visitor Economy","Art Gallery Tea Room","R4102"
"Wolverhampton City Council","http://opendatacommunities.org/id/metropolitan-district-council/wolverhampton","Arthur Brett (Catering) Limited","ID895017","76.34","Provisions (Resale)","130143537","04/11/2016","Visitor Economy","Art Gallery Tea Room","R4102"
"Wolverhampton City Council","http://opendatacommunities.org/id/metropolitan-district-council/wolverhampton","Arthur Brett (Catering) Limited","ID895008","47.92","Provisions (Resale)","130143536","04/11/2016","Visitor Economy","Bantock - Tea Rooms","R4102"
"Wolverhampton City Council","http://opendatacommunities.org/id/metropolitan-district-council/wolverhampton","Arthur Brett (Catering) Limited","ID894131","9.73","Provisions (Resale)","130142783","02/11/2016","Leisure Services","WV Active Catering","R4102"
"Wolverhampton City Council","http://opendatacommunities.org/id/metropolitan-district-council/wolverhampton","Arthur Brett (Catering) Limited","ID896824","3.87","Provisions (Resale)","130144578","16/11/2016","Leisure Services","WV Active Catering","R4102"
"Wolverhampton City Council","http://opendatacommunities.org/id/metropolitan-district-council/wolverhampton","Arthur Brett (Catering) Limited","ID894703","15.10","Provisions (Resale)","130143353","16/11/2016","Leisure Services","WV Active Catering","R4102"
"Wolverhampton City Council","http://opendatacommunities.org/id/metropolitan-district-council/wolverhampton","Arthur Brett (Catering) Limited","ID894241","44.46","Provisions (Resale)","130143824","18/11/2016","Older People Provider Services","Bradley Lodge Resource Centre","R4102"
"Wolverhampton City Council","http://opendatacommunities.org/id/metropolitan-district-council/wolverhampton","Arthur Brett (Catering) Limited","ID899919","115.06","Provisions (Resale)","130146178","23/11/2016","Visitor Economy","Bantock - Tea Rooms","R4102"
"Wolverhampton City Council","http://opendatacommunities.org/id/metropolitan-district-council/wolverhampton","Arthur Brett (Catering) Limited","ID900449","102.65","Provisions (Resale)","130146393","23/11/2016","Visitor Economy","Bantock - Tea Rooms","R4102"
"Wolverhampton City Council","http://opendatacommunities.org/id/metropolitan-district-council/wolverhampton","Arthur Brett (Catering) Limited","ID899934","79.40","Provisions (Resale)","130146179","23/11/2016","Visitor Economy","Art Gallery Tea Room","R4102"
"Wolverhampton City Council","http://opendatacommunities.org/id/metropolitan-district-council/wolverhampton","Arthur Brett (Catering) Limited","3009161","40,568.62","Provisions (Resale)","130145493","23/11/2016","Catering","Education Catering - General Overheads","R4102"
"Wolverhampton City Council","http://opendatacommunities.org/id/metropolitan-district-council/wolverhampton","Arthur Brett (Catering) Limited","ID897312","14.82","Provisions (Resale)","130145564","23/11/2016","Learning Disability Provider","Duke Street Bungalows","R4102"
"Wolverhampton City Council","http://opendatacommunities.org/id/metropolitan-district-council/wolverhampton","Arthur Brett (Catering) Limited","ID897323","13.26","Provisions (Resale)","130145565","23/11/2016","Learning Disability Provider","Duke Street Bungalows","R4102"
"Wolverhampton City Council","http://opendatacommunities.org/id/metropolitan-district-council/wolverhampton","Arthur Brett (Catering) Limited","ID897880","24.04","Provisions (Resale)","130146176","23/11/2016","Learning Disability Provider","Duke Street Bungalows","R4102"
"Wolverhampton City Council","http://opendatacommunities.org/id/metropolitan-district-council/wolverhampton","Arthur Brett (Catering) Limited","ID899218","7.50","Provisions (Resale)","130146177","23/11/2016","Learning Disability Provider","Duke Street Bungalows","R4102"
"Wolverhampton City Council","http://opendatacommunities.org/id/metropolitan-district-council/wolverhampton","Arthur Brett (Catering) Limited","ID898669","85.91","Provisions (Resale)","130145567","23/11/2016","Visitor Economy","Art Gallery Tea Room","R4102"
"Wolverhampton City Council","http://opendatacommunities.org/id/metropolitan-district-council/wolverhampton","Arthur Brett (Catering) Limited","ID898724","22.55","Provisions (Resale)","130145568","23/11/2016","Visitor Economy","Bantock - Tea Rooms","R4102"
"Wolverhampton City Council","http://opendatacommunities.org/id/metropolitan-district-council/wolverhampton","Arthur Brett (Catering) Limited","3110164","205.01","Provisions (Resale)","130147108","25/11/2016","Leisure Services","Bert Williams Leisure Centre Caf�","R4102"
"Wolverhampton City Council","http://opendatacommunities.org/id/metropolitan-district-council/wolverhampton","Arthur Brett (Catering) Limited","ID897822","17.87","Provisions (Resale)","130145364","25/11/2016","Older People Provider Services","Blakenhall Resource Centre","R4102"
"Wolverhampton City Council","http://opendatacommunities.org/id/metropolitan-district-council/wolverhampton","Arthur Brett (Catering) Limited","ID897471","98.67","Provisions (Resale)","130144923","23/11/2016","Visitor Economy","Art Gallery Tea Room","R4102"
"Wolverhampton City Council","http://opendatacommunities.org/id/metropolitan-district-council/wolverhampton","Arthur Brett (Catering) Limited","ID897762","103.01","Provisions (Resale)","130145080","23/11/2016","Visitor Economy","Bantock - Tea Rooms","R4102"
"Wolverhampton City Council","http://opendatacommunities.org/id/metropolitan-district-council/wolverhampton","Arthur Brett (Catering) Limited","ID899621","8.34","Provisions (Resale)","130145936","23/11/2016","Leisure Services","WV Active Catering","R4102"
"Wolverhampton City Council","http://opendatacommunities.org/id/metropolitan-district-council/wolverhampton","Arthur Brett (Catering) Limited","ID898331","56.37","Provisions (Resale)","130145365","23/11/2016","Visitor Economy","Bantock - Tea Rooms","R4102"
"Wolverhampton City Council","http://opendatacommunities.org/id/metropolitan-district-council/wolverhampton","Arthur Brett (Catering) Limited","ID895040","38.21","Provisions (Resale)","130144922","23/11/2016","Older People Provider Services","Bradley Lodge Resource Centre","R4102"
"Wolverhampton City Council","http://opendatacommunities.org/id/metropolitan-district-council/wolverhampton","Arthur Brett (Catering) Limited","ID841685","73.84","Provisions (Resale)","130142606","23/11/2016","Older People Provider Services","Bradley Lodge Resource Centre","R4102"
"Wolverhampton City Council","http://opendatacommunities.org/id/metropolitan-district-council/wolverhampton","Arthur Brett (Catering) Limited","ID894802","54.82","Provisions (Resale)","130144575","23/11/2016","Older People Provider Services","Bradley Lodge Resource Centre","R4102"
"Wolverhampton City Council","http://opendatacommunities.org/id/metropolitan-district-council/wolverhampton","Arthur Brett (Catering) Limited","ID899672","31.99","Provisions (Resale)","130145937","23/11/2016","Leisure Services","WV Active Catering","R4102"
"Wolverhampton City Council","http://opendatacommunities.org/id/metropolitan-district-council/wolverhampton","Arthur Brett (Catering) Limited","ID895063","5.16","Provisions (Resale)","130145078","16/11/2016","Learning Disability Provider","Duke Street Bungalows","R4102"
"Wolverhampton City Council","http://opendatacommunities.org/id/metropolitan-district-council/wolverhampton","Arthur Brett (Catering) Limited","ID895066","14.59","Provisions (Resale)","130145079","16/11/2016","Learning Disability Provider","Duke Street Bungalows","R4102"
"Wolverhampton City Council","http://opendatacommunities.org/id/metropolitan-district-council/wolverhampton","Arthur Brett (Catering) Limited","3009164","197.03","Provisions (Resale)","130145496","16/11/2016","Leisure Services","Bert Williams Leisure Centre Caf�","R4102"
"Wolverhampton City Council","http://opendatacommunities.org/id/metropolitan-district-council/wolverhampton","Arthur Brett (Catering) Limited","WI902404","421.52","Provisions (Resale)","130124779","16/11/2016","Contracts","Children Diet and Physical Activity","R4102"
"Wolverhampton City Council","http://opendatacommunities.org/id/metropolitan-district-council/wolverhampton","Arthur Brett (Catering) Limited","WI902416","421.52","Provisions (Resale)","130125724","16/11/2016","Contracts","Children Diet and Physical Activity","R4102"
"Wolverhampton City Council","http://opendatacommunities.org/id/metropolitan-district-council/wolverhampton","Arthur Brett (Catering) Limited","WI902425","402.48","Provisions (Resale)","130126565","16/11/2016","Contracts","Children Diet and Physical Activity","R4102"
"Wolverhampton City Council","http://opendatacommunities.org/id/metropolitan-district-council/wolverhampton","Arthur Brett (Catering) Limited","WI902448","424.44","Provisions (Resale)","130129023","16/11/2016","Contracts","Children Diet and Physical Activity","R4102"
"Wolverhampton City Council","http://opendatacommunities.org/id/metropolitan-district-council/wolverhampton","Arthur Brett (Catering) Limited","WI902459","432.44","Provisions (Resale)","130130003","16/11/2016","Contracts","Children Diet and Physical Activity","R4102"
"Wolverhampton City Council","http://opendatacommunities.org/id/metropolitan-district-council/wolverhampton","Arthur Brett (Catering) Limited","ID848045","14.00","Provisions (Resale)","130142611","16/11/2016","Learning Disability Provider","Duke Street Bungalows","R4102"
"Wolverhampton City Council","http://opendatacommunities.org/id/metropolitan-district-council/wolverhampton","Arthur Brett (Catering) Limited","ID895056","8.59","Provisions (Resale)","130145077","16/11/2016","Learning Disability Provider","Duke Street Bungalows","R4102"
"Wolverhampton City Council","http://opendatacommunities.org/id/metropolitan-district-council/wolverhampton","Arthur Brett (Catering) Limited","ID803248","5.37","Provisions (Resale)","130142600","16/11/2016","Learning Disability Provider","Duke Street Bungalows","R4102"
"Wolverhampton City Council","http://opendatacommunities.org/id/metropolitan-district-council/wolverhampton","Arthur Brett (Catering) Limited","ID848044","9.00","Provisions (Resale)","130142610","16/11/2016","Learning Disability Provider","Duke Street Bungalows","R4102"
"Wolverhampton City Council","http://opendatacommunities.org/id/metropolitan-district-council/wolverhampton","Arthur Brett (Catering) Limited","WI902523","382.48","Provisions (Resale)","130137748","16/11/2016","Contracts","Children Diet and Physical Activity","R4102"
"Wolverhampton City Council","http://opendatacommunities.org/id/metropolitan-district-council/wolverhampton","Arthur Brett (Catering) Limited","3009163","164.25","Provisions (Resale)","130145495","16/11/2016","Catering","Meals on Wheels","R4102"
"Wolverhampton City Council","http://opendatacommunities.org/id/metropolitan-district-council/wolverhampton","Arthur Brett (Catering) Limited","ID897939","11.84","Provisions (Resale)","130145081","16/11/2016","Leisure Services","WV Active Catering","R4102"
"Wolverhampton City Council","http://opendatacommunities.org/id/metropolitan-district-council/wolverhampton","Arthur Brett (Catering) Limited","ID875820","8.75","Provisions (Resale)","130145362","16/11/2016","Learning Disability Provider","Duke Street Bungalows","R4102"
"Wolverhampton City Council","http://opendatacommunities.org/id/metropolitan-district-council/wolverhampton","Arthur Brett (Catering) Limited","WI902535","368.87","Provisions (Resale)","130138620","16/11/2016","Contracts","Children Diet and Physical Activity","R4102"
"Wolverhampton City Council","http://opendatacommunities.org/id/metropolitan-district-council/wolverhampton","Arthur Brett (Catering) Limited","WI902570","373.62","Provisions (Resale)","130140733","16/11/2016","Contracts","Children Diet and Physical Activity","R4102"
"Wolverhampton City Council","http://opendatacommunities.org/id/metropolitan-district-council/wolverhampton","Arthur Brett (Catering) Limited","WI902582","376.74","Provisions (Resale)","130141549","16/11/2016","Contracts","Children Diet and Physical Activity","R4102"
"Wolverhampton City Council","http://opendatacommunities.org/id/metropolitan-district-council/wolverhampton","Arthur Brett (Catering) Limited","WI902617","373.38","Provisions (Resale)","130144609","16/11/2016","Contracts","Children Diet and Physical Activity","R4102"
"Wolverhampton City Council","http://opendatacommunities.org/id/metropolitan-district-council/wolverhampton","Arthur Brett (Catering) Limited","WI902549","354.12","Provisions (Resale)","130139504","16/11/2016","Contracts","Children Diet and Physical Activity","R4102"
"Wolverhampton City Council","http://opendatacommunities.org/id/metropolitan-district-council/wolverhampton","Arthur Brett (Catering) Limited","ID895656","26.89","Provisions (Resale)","130144034","16/11/2016","Leisure Services","WV Active Catering","R4102"
"Wolverhampton City Council","http://opendatacommunities.org/id/metropolitan-district-council/wolverhampton","Arthur Brett (Catering) Limited","ID892040","22.45","Provisions (Resale)","130145363","16/11/2016","Learning Disability Provider","Duke Street Bungalows","R4102"
"Wolverhampton City Council","http://opendatacommunities.org/id/metropolitan-district-council/wolverhampton","Arthur Brett (Catering) Limited","WI902512","279.92","Provisions (Resale)","130136905","16/11/2016","Contracts","Children Diet and Physical Activity","R4102"
"Wolverhampton City Council","http://opendatacommunities.org/id/metropolitan-district-council/wolverhampton","Arthur Brett (Catering) Limited","ID895381","82.95","Provisions (Resale)","130143825","09/11/2016","Visitor Economy","Bantock - Tea Rooms","R4102"
"Wolverhampton City Council","http://opendatacommunities.org/id/metropolitan-district-council/wolverhampton","Arthur Brett (Catering) Limited","ID895610","20.52","Provisions (Resale)","130144033","09/11/2016","Visitor Economy","Art Gallery Tea Room","R4102"
"Wolverhampton City Council","http://opendatacommunities.org/id/metropolitan-district-council/wolverhampton","Arthur Brett (Catering) Limited","ID895776","53.65","Provisions (Resale)","130144035","09/11/2016","Visitor Economy","Bantock - Tea Rooms","R4102"
"Wolverhampton City Council","http://opendatacommunities.org/id/metropolitan-district-council/wolverhampton","Arthur Brett (Catering) Limited","ID895023","7.31","Provisions (Resale)","130144576","11/11/2016","Learning Disability Provider","Duke Street Bungalows","R4102"
"Wolverhampton City Council","http://opendatacommunities.org/id/metropolitan-district-council/wolverhampton","Arthur Brett (Catering) Limited","ID893975","25.66","Provisions (Resale)","130144031","11/11/2016","Learning Disability Provider","Duke Street Bungalows","R4102"
"Wolverhampton City Council","http://opendatacommunities.org/id/metropolitan-district-council/wolverhampton","Arthur Brett (Catering) Limited","ID894259","7.36","Provisions (Resale)","130144032","11/11/2016","Learning Disability Provider","Duke Street Bungalows","R4102"
"Wolverhampton City Council","http://opendatacommunities.org/id/metropolitan-district-council/wolverhampton","Arthur Brett (Catering) Limited","ID880226","54.15","Provisions (Resale)","130137321","11/11/2016","Older People Provider Services","Bradley Lodge Resource Centre","R4102"
"Wolverhampton City Council","http://opendatacommunities.org/id/metropolitan-district-council/wolverhampton","Arthur Brett (Catering) Limited","ID895024","8.62","Provisions (Resale)","130144577","11/11/2016","Learning Disability Provider","Duke Street Bungalows","R4102"
"Wolverhampton City Council","http://opendatacommunities.org/id/metropolitan-district-council/wolverhampton","Arthur Brett (Catering) Limited","ID890500","51.68","Provisions (Resale)","130141822","18/11/2016","Older People Provider Services","Bradley Lodge Resource Centre","R4102"
"Wolverhampton City Council","http://opendatacommunities.org/id/metropolitan-district-council/wolverhampton","Arthur Brett (Catering) Limited","ID833845","52.06","Provisions (Resale)","130142603","18/11/2016","Older People Provider Services","Bradley Lodge Resource Centre","R4102"
"Wolverhampton City Council","http://opendatacommunities.org/id/metropolitan-district-council/wolverhampton","Arthur Brett (Catering) Limited","ID872345","56.02","Provisions (Resale)","130142612","18/11/2016","Older People Provider Services","Bradley Lodge Resource Centre","R4102"
"Wolverhampton City Council","http://opendatacommunities.org/id/metropolitan-district-council/wolverhampton","Arthur Brett (Catering) Limited","3009162","1,166.46","Provisions (Resale)","130145494","18/11/2016","Catering","Civic Centre Catering","R4102"
"Wolverhampton City Council","http://opendatacommunities.org/id/metropolitan-district-council/wolverhampton","Arthur M Griffiths & Son Limited","INI7226","136,999.79","Construction and Conversion","130145771","16/11/2016","-","Primary Expansion Programme","C1100"
"Wolverhampton City Council","http://opendatacommunities.org/id/metropolitan-district-council/wolverhampton","Arthur M Griffiths & Son Limited","IN17230","77,738.04","Construction and Conversion","130146395","23/11/2016","-","Primary Expansion Programme","C1100"
"Wolverhampton City Council","http://opendatacommunities.org/id/metropolitan-district-council/wolverhampton","Asan Management Services Limited","102872","162.00","Room Hire","130140016","18/11/2016","Healthier Places Service","Healthy Schools Team","R2201"
"Wolverhampton City Council","http://opendatacommunities.org/id/metropolitan-district-council/wolverhampton","Asan Management Services Limited","102872","-162.00","Room Hire","130140016","18/11/2016","Healthier Places Service","Healthy Schools Team","R2201"
"Wolverhampton City Council","http://opendatacommunities.org/id/metropolitan-district-council/wolverhampton","Asan Management Services Limited","102872","162.00","Room Hire","130140016","18/11/2016","Healthier Places Service","Healthy Schools Team","R2201"
"Wolverhampton City Council","http://opendatacommunities.org/id/metropolitan-district-council/wolverhampton","Asan Management Services Limited","102898","108.00","Room Hire","130144093","09/11/2016","Human Resources","Workforce Development","R2201"
"Wolverhampton City Council","http://opendatacommunities.org/id/metropolitan-district-council/wolverhampton","Asan Management Services Limited","102898","90.00","Catering","130144093","09/11/2016","Human Resources","Workforce Development","R4100"
"Wolverhampton City Council","http://opendatacommunities.org/id/metropolitan-district-council/wolverhampton","Ashdown Supplies","14227","333.60","Materials","130147070","30/11/2016","Bereavement Services","Cemeteries","R4007"
"Wolverhampton City Council","http://opendatacommunities.org/id/metropolitan-district-council/wolverhampton","Ashdown Supplies","14151","172.50","Materials","130143033","02/11/2016","Bereavement Services","Cemeteries","R4007"
"Wolverhampton City Council","http://opendatacommunities.org/id/metropolitan-district-council/wolverhampton","Ashtead Plant Hire Company Limited","14901456","857.73","Equipment - Hire","130143969","23/11/2016","Visitor Economy","Diwali","R4001"
"Wolverhampton City Council","http://opendatacommunities.org/id/metropolitan-district-council/wolverhampton","Ashtead Plant Hire Company Limited","14901456","-857.73","Equipment - Hire","130143969","23/11/2016","Visitor Economy","Diwali","R4001"
"Wolverhampton City Council","http://opendatacommunities.org/id/metropolitan-district-council/wolverhampton","Ashtead Plant Hire Company Limited","14901456","753.33","Equipment - Hire","130143969","23/11/2016","Visitor Economy","Diwali","R4001"
"Wolverhampton City Council","http://opendatacommunities.org/id/metropolitan-district-council/wolverhampton","Ashtead Plant Hire Company Limited","14901456","104.39","Equipment - Hire","130143969","23/11/2016","Visitor Economy","Diwali","R4001"
"Wolverhampton City Council","http://opendatacommunities.org/id/metropolitan-district-council/wolverhampton","Ashtead Plant Hire Company Limited","14969782","139.50","Equipment - Hire","130145002","30/11/2016","Visitor Economy","Hickman Park - Bonfire","R4001"
"Wolverhampton City Council","http://opendatacommunities.org/id/metropolitan-district-council/wolverhampton","Ashtead Plant Hire Company Limited","14969782","315.50","Equipment - Hire","130145002","30/11/2016","Visitor Economy","Hickman Park - Bonfire","R4001"
"Wolverhampton City Council","http://opendatacommunities.org/id/metropolitan-district-council/wolverhampton","Ashtead Plant Hire Company Limited","14969782","-315.50","Equipment - Hire","130145002","30/11/2016","Visitor Economy","Hickman Park - Bonfire","R4001"
"Wolverhampton City Council","http://opendatacommunities.org/id/metropolitan-district-council/wolverhampton","Ashtead Plant Hire Company Limited","14969782","176.00","Equipment - Hire","130145002","30/11/2016","Visitor Economy","Hickman Park - Bonfire","R4001"
"Wolverhampton City Council","http://opendatacommunities.org/id/metropolitan-district-council/wolverhampton","Ashtead Plant Hire Company Limited","14949419","134.00","Equipment - Hire","130144358","25/11/2016","Visitor Economy","Hickman Park - Bonfire","R4001"
"Wolverhampton City Council","http://opendatacommunities.org/id/metropolitan-district-council/wolverhampton","Ashtead Plant Hire Company Limited","14949420","402.22","Equipment - Hire","130144359","25/11/2016","Visitor Economy","Hickman Park - Bonfire","R4001"
"Wolverhampton City Council","http://opendatacommunities.org/id/metropolitan-district-council/wolverhampton","Ashtead Plant Hire Company Limited","14949421","753.33","Equipment - Hire","130144360","25/11/2016","Visitor Economy","Hickman Park - Bonfire","R4001"
"Wolverhampton City Council","http://opendatacommunities.org/id/metropolitan-district-council/wolverhampton","Ashtead Plant Hire Company Limited","14949422","753.33","Equipment - Hire","130144361","25/11/2016","Visitor Economy","Hickman Park - Bonfire","R4001"
"Wolverhampton City Council","http://opendatacommunities.org/id/metropolitan-district-council/wolverhampton","Askews & Holts Library Services Limited","5204465","350.92","Books","130143996","25/11/2016","Library Services","Global Budgets","R4309"
"Wolverhampton City Council","http://opendatacommunities.org/id/metropolitan-district-council/wolverhampton","Askews & Holts Library Services Limited","5207611","7.44","Books","130143997","25/11/2016","Library Services","Global Budgets","R4309"
"Wolverhampton City Council","http://opendatacommunities.org/id/metropolitan-district-council/wolverhampton","Askews & Holts Library Services Limited","5184650","25.40","Books","130141633","04/11/2016","Library Services","Global Budgets","R4309"
"Wolverhampton City Council","http://opendatacommunities.org/id/metropolitan-district-council/wolverhampton","Askews & Holts Library Services Limited","5179238","541.91","Books","130141211","04/11/2016","Library Services","Global Budgets","R4309"
"Wolverhampton City Council","http://opendatacommunities.org/id/metropolitan-district-council/wolverhampton","Askews & Holts Library Services Limited","5179285","311.08","Books","130141630","04/11/2016","Library Services","Global Budgets","R4309"
"Wolverhampton City Council","http://opendatacommunities.org/id/metropolitan-district-council/wolverhampton","Askews & Holts Library Services Limited","5183820","54.60","Books","130141631","04/11/2016","Library Services","Global Budgets","R4309"
"Wolverhampton City Council","http://opendatacommunities.org/id/metropolitan-district-council/wolverhampton","Askews & Holts Library Services Limited","5184649","318.83","Books","130141632","04/11/2016","Library Services","Global Budgets","R4309"
"Wolverhampton City Council","http://opendatacommunities.org/id/metropolitan-district-council/wolverhampton","Askews & Holts Library Services Limited","5166329","4.83","Books","130140076","04/11/2016","Library Services","Global Budgets","R4309"
"Wolverhampton City Council","http://opendatacommunities.org/id/metropolitan-district-council/wolverhampton","Askews & Holts Library Services Limited","5187392","214.57","Books","130141988","11/11/2016","Library Services","Global Budgets","R4309"
"Wolverhampton City Council","http://opendatacommunities.org/id/metropolitan-district-council/wolverhampton","Askews & Holts Library Services Limited","5187393","5.39","Books","130141989","11/11/2016","Library Services","Global Budgets","R4309"
"Wolverhampton City Council","http://opendatacommunities.org/id/metropolitan-district-council/wolverhampton","Askews & Holts Library Services Limited","5201478","113.70","Books","130143285","23/11/2016","Library Services","Global Budgets","R4309"
"Wolverhampton City Council","http://opendatacommunities.org/id/metropolitan-district-council/wolverhampton","Askews & Holts Library Services Limited","5201476","99.32","Books","130143283","23/11/2016","Library Services","Global Budgets","R4309"
"Wolverhampton City Council","http://opendatacommunities.org/id/metropolitan-district-council/wolverhampton","Askews & Holts Library Services Limited","5201477","14.36","Books","130143284","23/11/2016","Library Services","Global Budgets","R4309"
"Wolverhampton City Council","http://opendatacommunities.org/id/metropolitan-district-council/wolverhampton","Askews & Holts Library Services Limited","5196523","535.80","Books","130142890","18/11/2016","Library Services","Global Budgets","R4309"
"Wolverhampton City Council","http://opendatacommunities.org/id/metropolitan-district-council/wolverhampton","Askews & Holts Library Services Limited","5198694","69.36","Books","130142891","18/11/2016","Library Services","Global Budgets","R4309"
"Wolverhampton City Council","http://opendatacommunities.org/id/metropolitan-district-council/wolverhampton","Askews & Holts Library Services Limited","5196522","24.57","Books","130142889","18/11/2016","Library Services","Global Budgets","R4309"
"Wolverhampton City Council","http://opendatacommunities.org/id/metropolitan-district-council/wolverhampton","Askews & Holts Library Services Limited","5175242","11.56","Books","130140799","02/11/2016","Library Services","Global Budgets","R4309"
"Wolverhampton City Council","http://opendatacommunities.org/id/metropolitan-district-council/wolverhampton","Askews & Holts Library Services Limited","5174848","30.75","Books","130140795","02/11/2016","Library Services","Global Budgets","R4309"
"Wolverhampton City Council","http://opendatacommunities.org/id/metropolitan-district-council/wolverhampton","Askews & Holts Library Services Limited","5174849","17.50","Books","130140796","02/11/2016","Library Services","Global Budgets","R4309"
"Wolverhampton City Council","http://opendatacommunities.org/id/metropolitan-district-council/wolverhampton","Askews & Holts Library Services Limited","5174863","133.45","Books","130140797","02/11/2016","Library Services","Global Budgets","R4309"
"Wolverhampton City Council","http://opendatacommunities.org/id/metropolitan-district-council/wolverhampton","Askews & Holts Library Services Limited","5174864","105.00","Books","130140798","02/11/2016","Library Services","Global Budgets","R4309"
"Wolverhampton City Council","http://opendatacommunities.org/id/metropolitan-district-council/wolverhampton","Askews & Holts Library Services Limited","5174847","527.13","Books","130140794","02/11/2016","Library Services","Global Budgets","R4309"
"Wolverhampton City Council","http://opendatacommunities.org/id/metropolitan-district-council/wolverhampton","Askews & Holts Library Services Limited","5174650","11.26","Books","130140553","02/11/2016","Library Services","Global Budgets","R4309"
"Wolverhampton City Council","http://opendatacommunities.org/id/metropolitan-district-council/wolverhampton","Askews & Holts Library Services Limited","5174650","-11.26","Books","130140553","02/11/2016","Library Services","Global Budgets","R4309"
"Wolverhampton City Council","http://opendatacommunities.org/id/metropolitan-district-council/wolverhampton","Askews & Holts Library Services Limited","5174650","11.26","Books","130140553","02/11/2016","Library Services","Global Budgets","R4309"
"Wolverhampton City Council","http://opendatacommunities.org/id/metropolitan-district-council/wolverhampton","Askews & Holts Library Services Limited","5191510","276.89","Books","130142888","11/11/2016","Library Services","Global Budgets","R4309"
"Wolverhampton City Council","http://opendatacommunities.org/id/metropolitan-district-council/wolverhampton","Askews & Holts Library Services Limited","5187394","74.90","Books","130141990","11/11/2016","Library Services","Global Budgets","R4309"
"Wolverhampton City Council","http://opendatacommunities.org/id/metropolitan-district-council/wolverhampton","Askews & Holts Library Services Limited","5187395","35.00","Books","130141991","11/11/2016","Library Services","Global Budgets","R4309"
"Wolverhampton City Council","http://opendatacommunities.org/id/metropolitan-district-council/wolverhampton","Askews & Holts Library Services Limited","5191509","54.54","Books","130142887","11/11/2016","Library Services","Global Budgets","R4309"
"Wolverhampton City Council","http://opendatacommunities.org/id/metropolitan-district-council/wolverhampton","Askews & Holts Library Services Limited","5193351","455.25","Books","130143281","11/11/2016","Library Services","Global Budgets","R4309"
"Wolverhampton City Council","http://opendatacommunities.org/id/metropolitan-district-council/wolverhampton","Askews & Holts Library Services Limited","5193352","313.57","Books","130143282","11/11/2016","Library Services","Global Budgets","R4309"
"Wolverhampton City Council","http://opendatacommunities.org/id/metropolitan-district-council/wolverhampton","Askews & Holts Library Services Limited","5179239","144.52","Books","130141212","04/11/2016","Library Services","Global Budgets","R4309"
"Wolverhampton City Council","http://opendatacommunities.org/id/metropolitan-district-council/wolverhampton","Askews & Holts Library Services Limited","5180986","17.16","Books","130141214","04/11/2016","Library Services","Global Budgets","R4309"
"Wolverhampton City Council","http://opendatacommunities.org/id/metropolitan-district-council/wolverhampton","Askews & Holts Library Services Limited","5179236","18.41","Books","130141209","04/11/2016","Library Services","Global Budgets","R4309"
"Wolverhampton City Council","http://opendatacommunities.org/id/metropolitan-district-council/wolverhampton","Askews & Holts Library Services Limited","5179237","9.87","Books","130141210","04/11/2016","Library Services","Global Budgets","R4309"
"Wolverhampton City Council","http://opendatacommunities.org/id/metropolitan-district-council/wolverhampton","Askews & Holts Library Services Limited","5209618","93.70","Books","130144501","30/11/2016","Library Services","Global Budgets","R4309"
"Wolverhampton City Council","http://opendatacommunities.org/id/metropolitan-district-council/wolverhampton","Askews & Holts Library Services Limited","5209619","420.98","Books","130144502","30/11/2016","Library Services","Global Budgets","R4309"
"Wolverhampton City Council","http://opendatacommunities.org/id/metropolitan-district-council/wolverhampton","Askews & Holts Library Services Limited","5209620","209.27","Books","130144503","30/11/2016","Library Services","Global Budgets","R4309"
"Wolverhampton City Council","http://opendatacommunities.org/id/metropolitan-district-council/wolverhampton","Assn Of Electoral Administrators","19845","114.00","Subscriptions","130141167","04/11/2016","Democratic Services","Electoral Registration","R4701"
"Wolverhampton City Council","http://opendatacommunities.org/id/metropolitan-district-council/wolverhampton","Assoc Of Educational Psychologists","7730","700.00","Staff Advertising Costs","130142243","11/11/2016","Psychology","Inclusion Support","R1700"
"Wolverhampton City Council","http://opendatacommunities.org/id/metropolitan-district-council/wolverhampton","Associated  Radio Taxi�s","03018","760.00","Client Transport","130145175","23/11/2016","School Planning & Resources","Secondary- Transport","R3042"
"Wolverhampton City Council","http://opendatacommunities.org/id/metropolitan-district-council/wolverhampton","Associated  Radio Taxi�s","02159","116.80","Client Transport","130141893","04/11/2016","Children With Disabilities","Childrens with Disabilities Team","R3042"
"Wolverhampton City Council","http://opendatacommunities.org/id/metropolitan-district-council/wolverhampton","Associated  Radio Taxi�s","02159","-116.80","Client Transport","130141893","04/11/2016","Children With Disabilities","Childrens with Disabilities Team","R3042"
"Wolverhampton City Council","http://opendatacommunities.org/id/metropolitan-district-council/wolverhampton","Associated  Radio Taxi�s","02159","116.80","Client Transport","130141893","04/11/2016","Children With Disabilities","Childrens with Disabilities Team","R3042"
"Wolverhampton City Council","http://opendatacommunities.org/id/metropolitan-district-council/wolverhampton","Associated  Radio Taxi�s","02160","79.60","Client Transport","130141894","02/11/2016","Children With Disabilities","Childrens with Disabilities Team","R3042"
"Wolverhampton City Council","http://opendatacommunities.org/id/metropolitan-district-council/wolverhampton","Associated  Radio Taxi�s","02160","-79.60","Client Transport","130141894","02/11/2016","Children With Disabilities","Childrens with Disabilities Team","R3042"
"Wolverhampton City Council","http://opendatacommunities.org/id/metropolitan-district-council/wolverhampton","Associated  Radio Taxi�s","02160","79.60","Client Transport","130141894","02/11/2016","Children With Disabilities","Childrens with Disabilities Team","R3042"
"Wolverhampton City Council","http://opendatacommunities.org/id/metropolitan-district-council/wolverhampton","Associated  Radio Taxi�s","02077","-104.80","Client Transport","130129827","04/11/2016","Children With Disabilities","Childrens with Disabilities Team","R3042"
"Wolverhampton City Council","http://opendatacommunities.org/id/metropolitan-district-council/wolverhampton","Associated  Radio Taxi�s","02077","104.80","Client Transport","130129827","04/11/2016","Children With Disabilities","Childrens with Disabilities Team","R3042"
"Wolverhampton City Council","http://opendatacommunities.org/id/metropolitan-district-council/wolverhampton","Associated  Radio Taxi�s","02077","104.80","Client Transport","130129827","04/11/2016","Children With Disabilities","Childrens with Disabilities Team","R3042"
"Wolverhampton City Council","http://opendatacommunities.org/id/metropolitan-district-council/wolverhampton","Associated  Radio Taxi�s","02157","-180.70","Client Transport","130141711","04/11/2016","Children With Disabilities","Childrens with Disabilities Team","R3042"
"Wolverhampton City Council","http://opendatacommunities.org/id/metropolitan-district-council/wolverhampton","Associated  Radio Taxi�s","02157","180.70","Client Transport","130141711","04/11/2016","Children With Disabilities","Childrens with Disabilities Team","R3042"
"Wolverhampton City Council","http://opendatacommunities.org/id/metropolitan-district-council/wolverhampton","Associated  Radio Taxi�s","02157","180.70","Client Transport","130141711","04/11/2016","Children With Disabilities","Childrens with Disabilities Team","R3042"
"Wolverhampton City Council","http://opendatacommunities.org/id/metropolitan-district-council/wolverhampton","Associated  Radio Taxi�s","02121","506.35","Client Transport","130146999","30/11/2016","Children With Disabilities","Childrens with Disabilities Team","R3042"
"Wolverhampton City Council","http://opendatacommunities.org/id/metropolitan-district-council/wolverhampton","Associated  Radio Taxi�s","02121","-506.35","Client Transport","130146999","30/11/2016","Children With Disabilities","Childrens with Disabilities Team","R3042"
"Wolverhampton City Council","http://opendatacommunities.org/id/metropolitan-district-council/wolverhampton","Associated  Radio Taxi�s","02121","506.35","Client Transport","130146999","30/11/2016","Children With Disabilities","Childrens with Disabilities Team","R3042"
"Wolverhampton City Council","http://opendatacommunities.org/id/metropolitan-district-council/wolverhampton","Associated  Radio Taxi�s","03016","1,007.63","Client Transport","130145173","25/11/2016","School Planning & Resources","Primary - Transport","R3042"
"Wolverhampton City Council","http://opendatacommunities.org/id/metropolitan-district-council/wolverhampton","Associated  Radio Taxi�s","03016","-1,007.63","Client Transport","130145173","25/11/2016","School Planning & Resources","Primary - Transport","R3042"
"Wolverhampton City Council","http://opendatacommunities.org/id/metropolitan-district-council/wolverhampton","Associated  Radio Taxi�s","03016","1,007.63","Client Transport","130145173","25/11/2016","School Planning & Resources","Primary - Transport","R3042"
"Wolverhampton City Council","http://opendatacommunities.org/id/metropolitan-district-council/wolverhampton","Associated  Radio Taxi�s","02195","51.10","Client Transport","130146690","25/11/2016","Children With Disabilities","Childrens with Disabilities Team","R3042"
"Wolverhampton City Council","http://opendatacommunities.org/id/metropolitan-district-council/wolverhampton","Associated  Radio Taxi�s","03015","683.80","Client Transport","130145172","25/11/2016","School Planning & Resources","Special - Transport","R3042"
"Wolverhampton City Council","http://opendatacommunities.org/id/metropolitan-district-council/wolverhampton","Associated  Radio Taxi�s","03015","-683.80","Client Transport","130145172","25/11/2016","School Planning & Resources","Special - Transport","R3042"
"Wolverhampton City Council","http://opendatacommunities.org/id/metropolitan-district-council/wolverhampton","Associated  Radio Taxi�s","03015","683.80","Client Transport","130145172","25/11/2016","School Planning & Resources","Special - Transport","R3042"
"Wolverhampton City Council","http://opendatacommunities.org/id/metropolitan-district-council/wolverhampton","Associated  Radio Taxi�s","02162","332.60","Client Transport","130146448","25/11/2016","Children With Disabilities","Childrens with Disabilities Team","R3042"
"Wolverhampton City Council","http://opendatacommunities.org/id/metropolitan-district-council/wolverhampton","Associated  Radio Taxi�s","02162","-332.60","Client Transport","130146448","25/11/2016","Children With Disabilities","Childrens with Disabilities Team","R3042"
"Wolverhampton City Council","http://opendatacommunities.org/id/metropolitan-district-council/wolverhampton","Associated  Radio Taxi�s","02162","20.85","Client Transport","130146448","25/11/2016","Children With Disabilities","Childrens with Disabilities Team","R3042"
"Wolverhampton City Council","http://opendatacommunities.org/id/metropolitan-district-council/wolverhampton","Associated  Radio Taxi�s","02162","311.75","Client Transport","130146448","25/11/2016","Children With Disabilities","Childrens with Disabilities Team","R3042"
"Wolverhampton City Council","http://opendatacommunities.org/id/metropolitan-district-council/wolverhampton","Associated  Radio Taxi�s","02194","52.40","Client Transport","130146689","25/11/2016","Children With Disabilities","Childrens with Disabilities Team","R3042"
"Wolverhampton City Council","http://opendatacommunities.org/id/metropolitan-district-council/wolverhampton","Associated  Radio Taxi�s","02194","-52.40","Client Transport","130146689","25/11/2016","Children With Disabilities","Childrens with Disabilities Team","R3042"
"Wolverhampton City Council","http://opendatacommunities.org/id/metropolitan-district-council/wolverhampton","Associated  Radio Taxi�s","02194","52.40","Client Transport","130146689","25/11/2016","Children With Disabilities","Childrens with Disabilities Team","R3042"
"Wolverhampton City Council","http://opendatacommunities.org/id/metropolitan-district-council/wolverhampton","Associated  Radio Taxi�s","03030","52.00","Client Transport","130145178","16/11/2016","School Planning & Resources","Special - Transport","R3042"
"Wolverhampton City Council","http://opendatacommunities.org/id/metropolitan-district-council/wolverhampton","Associated  Radio Taxi�s","03030","-52.00","Client Transport","130145178","16/11/2016","School Planning & Resources","Special - Transport","R3042"
"Wolverhampton City Council","http://opendatacommunities.org/id/metropolitan-district-council/wolverhampton","Associated  Radio Taxi�s","03030","52.00","Client Transport","130145178","16/11/2016","School Planning & Resources","Special - Transport","R3042"
"Wolverhampton City Council","http://opendatacommunities.org/id/metropolitan-district-council/wolverhampton","Associated  Radio Taxi�s","03013","1,068.64","Client Transport","130145170","16/11/2016","School Planning & Resources","Primary - Transport","R3042"
"Wolverhampton City Council","http://opendatacommunities.org/id/metropolitan-district-council/wolverhampton","Associated  Radio Taxi�s","03013","-1,068.64","Client Transport","130145170","16/11/2016","School Planning & Resources","Primary - Transport","R3042"
"Wolverhampton City Council","http://opendatacommunities.org/id/metropolitan-district-council/wolverhampton","Associated  Radio Taxi�s","03013","1,068.64","Client Transport","130145170","16/11/2016","School Planning & Resources","Primary - Transport","R3042"
"Wolverhampton City Council","http://opendatacommunities.org/id/metropolitan-district-council/wolverhampton","Associated  Radio Taxi�s","03019","36.65","Client Transport","130145176","16/11/2016","School Planning & Resources","Secondary- Transport","R3042"
"Wolverhampton City Council","http://opendatacommunities.org/id/metropolitan-district-council/wolverhampton","Associated  Radio Taxi�s","03019","-36.65","Client Transport","130145176","16/11/2016","School Planning & Resources","Secondary- Transport","R3042"
"Wolverhampton City Council","http://opendatacommunities.org/id/metropolitan-district-council/wolverhampton","Associated  Radio Taxi�s","03019","36.65","Client Transport","130145176","16/11/2016","School Planning & Resources","Secondary- Transport","R3042"
"Wolverhampton City Council","http://opendatacommunities.org/id/metropolitan-district-council/wolverhampton","Associated  Radio Taxi�s","03029","26.60","Client Transport","130145177","16/11/2016","School Planning & Resources","Special - Transport","R3042"
"Wolverhampton City Council","http://opendatacommunities.org/id/metropolitan-district-council/wolverhampton","Associated  Radio Taxi�s","03029","-26.60","Client Transport","130145177","16/11/2016","School Planning & Resources","Special - Transport","R3042"
"Wolverhampton City Council","http://opendatacommunities.org/id/metropolitan-district-council/wolverhampton","Associated  Radio Taxi�s","03029","26.60","Client Transport","130145177","16/11/2016","School Planning & Resources","Special - Transport","R3042"
"Wolverhampton City Council","http://opendatacommunities.org/id/metropolitan-district-council/wolverhampton","Associated  Radio Taxi�s","03014","857.92","Client Transport","130145171","16/11/2016","School Planning & Resources","Primary - Transport","R3042"
"Wolverhampton City Council","http://opendatacommunities.org/id/metropolitan-district-council/wolverhampton","Associated  Radio Taxi�s","03014","-857.92","Client Transport","130145171","16/11/2016","School Planning & Resources","Primary - Transport","R3042"
"Wolverhampton City Council","http://opendatacommunities.org/id/metropolitan-district-council/wolverhampton","Associated  Radio Taxi�s","03014","857.92","Client Transport","130145171","16/11/2016","School Planning & Resources","Primary - Transport","R3042"
"Wolverhampton City Council","http://opendatacommunities.org/id/metropolitan-district-council/wolverhampton","Associated  Radio Taxi�s","03017","884.16","Client Transport","130145174","16/11/2016","School Planning & Resources","Secondary- Transport","R3042"
"Wolverhampton City Council","http://opendatacommunities.org/id/metropolitan-district-council/wolverhampton","Associated  Radio Taxi�s","03017","-884.16","Client Transport","130145174","16/11/2016","School Planning & Resources","Secondary- Transport","R3042"
"Wolverhampton City Council","http://opendatacommunities.org/id/metropolitan-district-council/wolverhampton","Associated  Radio Taxi�s","03017","884.16","Client Transport","130145174","16/11/2016","School Planning & Resources","Secondary- Transport","R3042"
"Wolverhampton City Council","http://opendatacommunities.org/id/metropolitan-district-council/wolverhampton","Associated  Radio Taxi�s","03012","946.20","Client Transport","130145169","16/11/2016","School Planning & Resources","Secondary- Transport","R3042"
"Wolverhampton City Council","http://opendatacommunities.org/id/metropolitan-district-council/wolverhampton","Associated  Radio Taxi�s","03012","-946.20","Client Transport","130145169","16/11/2016","School Planning & Resources","Secondary- Transport","R3042"
"Wolverhampton City Council","http://opendatacommunities.org/id/metropolitan-district-council/wolverhampton","Associated  Radio Taxi�s","03012","946.20","Client Transport","130145169","16/11/2016","School Planning & Resources","Secondary- Transport","R3042"
"Wolverhampton City Council","http://opendatacommunities.org/id/metropolitan-district-council/wolverhampton","Associated  Radio Taxi�s","02155","130.80","Client Transport","130144324","16/11/2016","Learning Disability Provider","Ernest Bold Court","R3042"
"Wolverhampton City Council","http://opendatacommunities.org/id/metropolitan-district-council/wolverhampton","Associated  Radio Taxi�s","02155","-130.80","Client Transport","130144324","16/11/2016","Learning Disability Provider","Ernest Bold Court","R3042"
"Wolverhampton City Council","http://opendatacommunities.org/id/metropolitan-district-council/wolverhampton","Associated  Radio Taxi�s","02155","130.80","Client Transport","130144324","16/11/2016","Learning Disability Provider","Ernest Bold Court","R3042"
"Wolverhampton City Council","http://opendatacommunities.org/id/metropolitan-district-council/wolverhampton","Axiom Building Solutions","03042","1,972.00","R&M - Departmental planned (external)","130142416","11/11/2016","School Planning & Resources","Other Support Services","R2001"
"Wolverhampton City Council","http://opendatacommunities.org/id/metropolitan-district-council/wolverhampton","Axiom Building Solutions","03041","250.00","R&M - Departmental planned (external)","130142415","11/11/2016","Maintenance Programme","Centralised R&M","R2001"
"Wolverhampton City Council","http://opendatacommunities.org/id/metropolitan-district-council/wolverhampton","Axiom Building Solutions","03084","9,857.00","R&M - Departmental planned (external)","130143879","25/11/2016","Public Protection","Site Works (Reg)","R2001"
"Wolverhampton City Council","http://opendatacommunities.org/id/metropolitan-district-council/wolverhampton","B + G Cleaning Systems Limited","158131","8.95","Services - Professional Fees","190283089","09/11/2016","Fleet Services","Fleet Management","R4400"
"Wolverhampton City Council","http://opendatacommunities.org/id/metropolitan-district-council/wolverhampton","B + G Cleaning Systems Limited","158131","5.95","Services - Professional Fees","190283089","09/11/2016","Fleet Services","Fleet Management","R4400"
"Wolverhampton City Council","http://opendatacommunities.org/id/metropolitan-district-council/wolverhampton","B + G Cleaning Systems Limited","158131","17.48","Services - Professional Fees","190283089","09/11/2016","Fleet Services","Fleet Management","R4400"
"Wolverhampton City Council","http://opendatacommunities.org/id/metropolitan-district-council/wolverhampton","B + G Cleaning Systems Limited","158131","85.00","Services - Professional Fees","190283089","09/11/2016","Fleet Services","Fleet Management","R4400"
"Wolverhampton City Council","http://opendatacommunities.org/id/metropolitan-district-council/wolverhampton","B + G Cleaning Systems Limited","158131","23.90","Services - Professional Fees","190283089","09/11/2016","Fleet Services","Fleet Management","R4400"
"Wolverhampton City Council","http://opendatacommunities.org/id/metropolitan-district-council/wolverhampton","B + G Cleaning Systems Limited","158131","9.95","Services - Professional Fees","190283089","09/11/2016","Fleet Services","Fleet Management","R4400"
"Wolverhampton City Council","http://opendatacommunities.org/id/metropolitan-district-council/wolverhampton","Back Care Solutions Limited","48327","50.00","Equipment - Hire","130144498","23/11/2016","Early Years","Early Years & Universal Service","R4001"
"Wolverhampton City Council","http://opendatacommunities.org/id/metropolitan-district-council/wolverhampton","Badenoch & Clark Recruit. Specialist","BE7216/00","3,012.05","Agency Staff","130143513","02/11/2016","Strategic Finance","Strategic Finance","R1100"
"Wolverhampton City Council","http://opendatacommunities.org/id/metropolitan-district-council/wolverhampton","Badenoch & Clark Recruit. Specialist","BD6501/00","2,625.00","Agency Staff","130142584","02/11/2016","ICTS","Digital Transformation Programme","R1100"
"Wolverhampton City Council","http://opendatacommunities.org/id/metropolitan-district-council/wolverhampton","Badenoch & Clark Recruit. Specialist","BD6498/00","2,750.00","Agency Staff","130142583","02/11/2016","ICTS","Digital Transformation Programme","R1100"
"Wolverhampton City Council","http://opendatacommunities.org/id/metropolitan-district-council/wolverhampton","Badenoch & Clark Recruit. Specialist","BD5640/00","2,176.45","Agency Staff","130142582","02/11/2016","Strategic Finance","Strategic Finance","R1100"
"Wolverhampton City Council","http://opendatacommunities.org/id/metropolitan-district-council/wolverhampton","Badenoch & Clark Recruit. Specialist","BF0130/00","3,275.00","Agency Staff","130143518","04/11/2016","Service Director Older People","Service Director Older People","R1100"
"Wolverhampton City Council","http://opendatacommunities.org/id/metropolitan-district-council/wolverhampton","Badenoch & Clark Recruit. Specialist","BE8729/00","2,625.00","Agency Staff","130143515","04/11/2016","ICTS","Digital Transformation Programme","R1100"
"Wolverhampton City Council","http://opendatacommunities.org/id/metropolitan-district-council/wolverhampton","Badenoch & Clark Recruit. Specialist","BE7313/00","2,176.45","Agency Staff","130143514","04/11/2016","Strategic Finance","Strategic Finance","R1100"
"Wolverhampton City Council","http://opendatacommunities.org/id/metropolitan-district-council/wolverhampton","Badenoch & Clark Recruit. Specialist","BG6796/00","3,575.00","Agency Staff","130144914","30/11/2016","City Development","City Development  - Core Team","R1100"
"Wolverhampton City Council","http://opendatacommunities.org/id/metropolitan-district-council/wolverhampton","Badenoch & Clark Recruit. Specialist","BJ7174/00","3,575.00","Agency Staff","130146157","30/11/2016","City Development","City Development  - Core Team","R1100"
"Wolverhampton City Council","http://opendatacommunities.org/id/metropolitan-district-council/wolverhampton","Badenoch & Clark Recruit. Specialist","BG6797/00","2,860.00","Agency Staff","130144915","30/11/2016","City Development","City Development  - Core Team","R1100"
"Wolverhampton City Council","http://opendatacommunities.org/id/metropolitan-district-council/wolverhampton","Badenoch & Clark Recruit. Specialist","BG6798/00","3,217.50","Agency Staff","130144916","30/11/2016","City Development","City Development  - Core Team","R1100"
"Wolverhampton City Council","http://opendatacommunities.org/id/metropolitan-district-council/wolverhampton","Badenoch & Clark Recruit. Specialist","BF8221/00","2,475.00","Agency Staff","130144026","09/11/2016","ICTS","Digital Transformation Programme","R1100"
"Wolverhampton City Council","http://opendatacommunities.org/id/metropolitan-district-council/wolverhampton","Badenoch & Clark Recruit. Specialist","BE8742/00","1,750.00","Agency Staff","130143516","09/11/2016","ICTS","Digital Transformation Programme","R1100"
"Wolverhampton City Council","http://opendatacommunities.org/id/metropolitan-district-council/wolverhampton","Badenoch & Clark Recruit. Specialist","BE8743/00","1,750.00","Agency Staff","130143517","09/11/2016","ICTS","Digital Transformation Programme","R1100"
"Wolverhampton City Council","http://opendatacommunities.org/id/metropolitan-district-council/wolverhampton","Badenoch & Clark Recruit. Specialist","BD6918/00","3,275.00","Agency Staff","130142585","02/11/2016","Service Director Older People","Service Director Older People","R1100"
"Wolverhampton City Council","http://opendatacommunities.org/id/metropolitan-district-council/wolverhampton","Badenoch & Clark Recruit. Specialist","BK2499/00","2,176.45","Agency Staff","130146781","30/11/2016","Strategic Finance","Strategic Finance","R1100"
"Wolverhampton City Council","http://opendatacommunities.org/id/metropolitan-district-council/wolverhampton","Badenoch & Clark Recruit. Specialist","BH6739/00","3,275.00","Agency Staff","130145544","23/11/2016","Service Director Older People","Service Director Older People","R1100"
"Wolverhampton City Council","http://opendatacommunities.org/id/metropolitan-district-council/wolverhampton","Badenoch & Clark Recruit. Specialist","BH7935/00","2,176.45","Agency Staff","130145753","23/11/2016","Strategic Finance","Strategic Finance","R1100"
"Wolverhampton City Council","http://opendatacommunities.org/id/metropolitan-district-council/wolverhampton","Badenoch & Clark Recruit. Specialist","BH7933/00","435.29","Agency Staff","130145751","23/11/2016","Strategic Finance","Strategic Finance","R1100"
"Wolverhampton City Council","http://opendatacommunities.org/id/metropolitan-district-council/wolverhampton","Badenoch & Clark Recruit. Specialist","BH5488/00","2,750.00","Agency Staff","130145543","23/11/2016","ICTS","Digital Transformation Programme","R1100"
"Wolverhampton City Council","http://opendatacommunities.org/id/metropolitan-district-council/wolverhampton","Badenoch & Clark Recruit. Specialist","BH7079/00","2,625.00","Agency Staff","130145750","23/11/2016","ICTS","Digital Transformation Programme","R1100"
"Wolverhampton City Council","http://opendatacommunities.org/id/metropolitan-district-council/wolverhampton","Badenoch & Clark Recruit. Specialist","BH7978/00","2,100.00","Agency Staff","130145757","23/11/2016","Strategic Finance","Strategic Finance","R1100"
"Wolverhampton City Council","http://opendatacommunities.org/id/metropolitan-district-council/wolverhampton","Badenoch & Clark Recruit. Specialist","BH7979/00","2,100.00","Agency Staff","130145758","23/11/2016","Strategic Finance","Strategic Finance","R1100"
"Wolverhampton City Council","http://opendatacommunities.org/id/metropolitan-district-council/wolverhampton","Badenoch & Clark Recruit. Specialist","BJ8602/00","2,100.00","Agency Staff","130146570","23/11/2016","Strategic Finance","Strategic Finance","R1100"
"Wolverhampton City Council","http://opendatacommunities.org/id/metropolitan-district-council/wolverhampton","Badenoch & Clark Recruit. Specialist","BG6795/00","3,575.00","Agency Staff","130144913","18/11/2016","City Development","City Development  - Core Team","R1100"
"Wolverhampton City Council","http://opendatacommunities.org/id/metropolitan-district-council/wolverhampton","Badenoch & Clark Recruit. Specialist","BG3885/00","3,012.05","Agency Staff","130144553","11/11/2016","Strategic Finance","Strategic Finance","R1100"
"Wolverhampton City Council","http://opendatacommunities.org/id/metropolitan-district-council/wolverhampton","Badenoch & Clark Recruit. Specialist","BG5090/00","2,625.00","Agency Staff","130144718","11/11/2016","ICTS","Digital Transformation Programme","R1100"
"Wolverhampton City Council","http://opendatacommunities.org/id/metropolitan-district-council/wolverhampton","Badenoch & Clark Recruit. Specialist","BH8026/00","3,012.05","Agency Staff","130145759","23/11/2016","Strategic Finance","Strategic Finance","R1100"
"Wolverhampton City Council","http://opendatacommunities.org/id/metropolitan-district-council/wolverhampton","Badenoch & Clark Recruit. Specialist","BH7934/00","1,741.16","Agency Staff","130145752","23/11/2016","Strategic Finance","Strategic Finance","R1100"
"Wolverhampton City Council","http://opendatacommunities.org/id/metropolitan-district-council/wolverhampton","Badenoch & Clark Recruit. Specialist","BH7975/00","2,100.00","Agency Staff","130145754","23/11/2016","Strategic Finance","Strategic Finance","R1100"
"Wolverhampton City Council","http://opendatacommunities.org/id/metropolitan-district-council/wolverhampton","Badenoch & Clark Recruit. Specialist","BH7976/00","2,100.00","Agency Staff","130145755","23/11/2016","Strategic Finance","Strategic Finance","R1100"
"Wolverhampton City Council","http://opendatacommunities.org/id/metropolitan-district-council/wolverhampton","Badenoch & Clark Recruit. Specialist","BH7977/00","2,100.00","Agency Staff","130145756","23/11/2016","Strategic Finance","Strategic Finance","R1100"
"Wolverhampton City Council","http://opendatacommunities.org/id/metropolitan-district-council/wolverhampton","Badenoch & Clark Recruit. Specialist","BE6515/00","3,575.00","Agency Staff","130143512","11/11/2016","City Development","City Development  - Core Team","R1100"
"Wolverhampton City Council","http://opendatacommunities.org/id/metropolitan-district-council/wolverhampton","Bains Supersave Limited","APNEWS 031","46.50","Books","130144717","11/11/2016","Library Services","Global Budgets","R4309"
"Wolverhampton City Council","http://opendatacommunities.org/id/metropolitan-district-council/wolverhampton","Barnsley Metropolitan Boro Council","9000213605","3,000.00","Subscriptions","130142254","09/11/2016","Democratic Services","Members Expenses","R4701"
"Wolverhampton City Council","http://opendatacommunities.org/id/metropolitan-district-council/wolverhampton","Barnsley Metropolitan Boro Council","9000213605","-3,000.00","Subscriptions","130142254","09/11/2016","Democratic Services","Members Expenses","R4701"
"Wolverhampton City Council","http://opendatacommunities.org/id/metropolitan-district-council/wolverhampton","Barnsley Metropolitan Boro Council","9000213605","3,000.00","Subscriptions","130142254","09/11/2016","Democratic Services","Members Expenses","R4701"
"Wolverhampton City Council","http://opendatacommunities.org/id/metropolitan-district-council/wolverhampton","Base 25","2814","12,000.00","TPP - Social Care Support Services","130139579","02/11/2016","Safeguarding","Head of Service Quality and Safeguarding","R5501"
"Wolverhampton City Council","http://opendatacommunities.org/id/metropolitan-district-council/wolverhampton","Base 25","2815","15,059.00","TPP - Public Health Contracts","130139580","02/11/2016","Contracts","Public Mental Health","R5060"
"Wolverhampton City Council","http://opendatacommunities.org/id/metropolitan-district-council/wolverhampton","Bbp.Security Services & Training Limited","991CIV141116OE","1,627.54","Services - Security","130145539","23/11/2016","Visitor Economy","Bonfire","R4405"
"Wolverhampton City Council","http://opendatacommunities.org/id/metropolitan-district-council/wolverhampton","Bbp.Security Services & Training Limited","060WCC141116","3,140.00","Services - Security","130145831","23/11/2016","Facilities Management","Parkfields Office Accomodation","R4405"
"Wolverhampton City Council","http://opendatacommunities.org/id/metropolitan-district-council/wolverhampton","Bbp.Security Services & Training Limited","061WCC141116","2,100.00","Services - Security","130145832","23/11/2016","Facilities Management","i10 Facilities Management","R4405"
"Wolverhampton City Council","http://opendatacommunities.org/id/metropolitan-district-council/wolverhampton","Bbp.Security Services & Training Limited","059WCC091116","1,069.50","Plant, Equipment, Machinery & Computer Hardware","130144809","11/11/2016","-","GF - Leisure Centres Enhancement","C3000"
"Wolverhampton City Council","http://opendatacommunities.org/id/metropolitan-district-council/wolverhampton","Bbp.Security Services & Training Limited","058WCC091116","1,656.00","Plant, Equipment, Machinery & Computer Hardware","130144808","11/11/2016","-","GF - Leisure Centres Enhancement","C3000"
"Wolverhampton City Council","http://opendatacommunities.org/id/metropolitan-district-council/wolverhampton","Bbp.Security Services & Training Limited","986CIV081116OE","1,814.56","Services - Security","130144715","11/11/2016","Visitor Economy","Diwali","R4405"
"Wolverhampton City Council","http://opendatacommunities.org/id/metropolitan-district-council/wolverhampton","Bbp.Security Services & Training Limited","987WCC081116OE","3,214.94","Services - Security","130144716","11/11/2016","Visitor Economy","Hickman Park - Bonfire","R4405"
"Wolverhampton City Council","http://opendatacommunities.org/id/metropolitan-district-council/wolverhampton","Bbp.Security Services & Training Limited","057WCC091116","1,625.00","Services - Security","130144807","11/11/2016","Facilities Management","Civic Centre","R4405"
"Wolverhampton City Council","http://opendatacommunities.org/id/metropolitan-district-council/wolverhampton","Bbp.Security Services & Training Limited","984CIV031116","529.69","Services - Security","130144713","11/11/2016","Visitor Economy","Civic & Wulfrun In-House Promotions","R4405"
"Wolverhampton City Council","http://opendatacommunities.org/id/metropolitan-district-council/wolverhampton","Bbp.Security Services & Training Limited","985CIV031116","7,041.78","Services - Security","130144714","11/11/2016","Visitor Economy","Civic & Wulfrun Outhouse & Other Comercial Events","R4405"
"Wolverhampton City Council","http://opendatacommunities.org/id/metropolitan-district-council/wolverhampton","BCC Mac T/A St Edmund�s Catholic","P12971720161107","600.00","Grant Payments to Individuals","190282779","09/11/2016","Looked After Children","LAC Education Team (LACE)","R6402"
"Wolverhampton City Council","http://opendatacommunities.org/id/metropolitan-district-council/wolverhampton","BCC Mac T/A St Edmund�s Catholic","P12971720161107","600.00","Grant Payments to Individuals","190282779","09/11/2016","Looked After Children","LAC Education Team (LACE)","R6402"
"Wolverhampton City Council","http://opendatacommunities.org/id/metropolitan-district-council/wolverhampton","BCC Mac T/A St Edmund�s Catholic","P12971720161107","600.00","Grant Payments to Individuals","190282779","09/11/2016","Looked After Children","LAC Education Team (LACE)","R6402"
"Wolverhampton City Council","http://opendatacommunities.org/id/metropolitan-district-council/wolverhampton","BCC Mac T/A St Teresa�S Catholic","St Teresa Dsc Mls Sept 16","68.09","School Meals","190287361","23/11/2016","Schools","Discounted School Meals Scheme","R4103"
"Wolverhampton City Council","http://opendatacommunities.org/id/metropolitan-district-council/wolverhampton","BCC Mac T/A St Teresa�S Catholic","St Teresa Dsc Mls Oct 16","68.70","School Meals","190289996","30/11/2016","Schools","Discounted School Meals Scheme","R4103"
"Wolverhampton City Council","http://opendatacommunities.org/id/metropolitan-district-council/wolverhampton","Beacon Centre For The Blind","BCI2444320161117","950.00","TPP - Day Care","190285797","18/11/2016","Older People Assessment & Care Management","OP Care Purchasing (Spot Placements)","R5430"
"Wolverhampton City Council","http://opendatacommunities.org/id/metropolitan-district-council/wolverhampton","Beacon Centre For The Blind","BCI2444320161117","400.00","TPP - Day Care","190285797","18/11/2016","Older People Assessment & Care Management","OP Care Purchasing (Spot Placements)","R5430"
"Wolverhampton City Council","http://opendatacommunities.org/id/metropolitan-district-council/wolverhampton","Beacon Centre For The Blind","BCI2444320161117","600.00","TPP - Day Care","190285797","18/11/2016","Older People Assessment & Care Management","OP Care Purchasing (Spot Placements)","R5430"
"Wolverhampton City Council","http://opendatacommunities.org/id/metropolitan-district-council/wolverhampton","Beacon Centre For The Blind","BCI2444320161117","250.00","TPP - Day Care","190285797","18/11/2016","Older People Assessment & Care Management","OP Care Purchasing (Spot Placements)","R5430"
"Wolverhampton City Council","http://opendatacommunities.org/id/metropolitan-district-council/wolverhampton","Beacon Centre For The Blind","BCI2444320161117","400.00","TPP - Day Care","190285797","18/11/2016","Older People Assessment & Care Management","OP Care Purchasing (Spot Placements)","R5430"
"Wolverhampton City Council","http://opendatacommunities.org/id/metropolitan-district-council/wolverhampton","Beacon Centre For The Blind","BCI2444320161117","600.00","TPP - Day Care","190285797","18/11/2016","Older People Assessment & Care Management","OP Care Purchasing (Spot Placements)","R5430"
"Wolverhampton City Council","http://opendatacommunities.org/id/metropolitan-district-council/wolverhampton","Beacon Centre For The Blind","BCI2444320161117","400.00","TPP - Day Care","190285797","18/11/2016","Older People Assessment & Care Management","OP Care Purchasing (Spot Placements)","R5430"
"Wolverhampton City Council","http://opendatacommunities.org/id/metropolitan-district-council/wolverhampton","Beacon Centre For The Blind","BCI2444220161117","144.90","TPP - Day Care","190285796","18/11/2016","Older People Assessment & Care Management","OP Care Purchasing (Spot Placements)","R5430"
"Wolverhampton City Council","http://opendatacommunities.org/id/metropolitan-district-council/wolverhampton","Beacon Centre For The Blind","BCI2444220161117","96.60","TPP - Day Care","190285796","18/11/2016","Older People Assessment & Care Management","OP Care Purchasing (Spot Placements)","R5430"
"Wolverhampton City Council","http://opendatacommunities.org/id/metropolitan-district-council/wolverhampton","Beacon Centre For The Blind","BCI2444220161117","289.80","TPP - Day Care","190285796","18/11/2016","Older People Assessment & Care Management","OP Care Purchasing (Spot Placements)","R5430"
"Wolverhampton City Council","http://opendatacommunities.org/id/metropolitan-district-council/wolverhampton","Beacon Centre For The Blind","BCI2444220161117","96.60","TPP - Day Care","190285796","18/11/2016","Older People Assessment & Care Management","OP Care Purchasing (Spot Placements)","R5430"
"Wolverhampton City Council","http://opendatacommunities.org/id/metropolitan-district-council/wolverhampton","Beacon Centre For The Blind","BCI2444220161117","289.80","TPP - Day Care","190285796","18/11/2016","Older People Assessment & Care Management","OP Care Purchasing (Spot Placements)","R5430"
"Wolverhampton City Council","http://opendatacommunities.org/id/metropolitan-district-council/wolverhampton","Beacon Centre For The Blind","BCI2444220161117","96.60","TPP - Day Care","190285796","18/11/2016","Older People Assessment & Care Management","OP Care Purchasing (Spot Placements)","R5430"
"Wolverhampton City Council","http://opendatacommunities.org/id/metropolitan-district-council/wolverhampton","Beacon Centre For The Blind","BCI2444220161117","144.90","TPP - Day Care","190285796","18/11/2016","Older People Assessment & Care Management","OP Care Purchasing (Spot Placements)","R5430"
"Wolverhampton City Council","http://opendatacommunities.org/id/metropolitan-district-council/wolverhampton","Beacon Centre For The Blind","BCI2444220161117","24.15","TPP - Day Care","190285796","18/11/2016","Older People Assessment & Care Management","OP Care Purchasing (Spot Placements)","R5430"
"Wolverhampton City Council","http://opendatacommunities.org/id/metropolitan-district-council/wolverhampton","Beacon Centre For The Blind","BCI2444220161117","96.60","TPP - Day Care","190285796","18/11/2016","Older People Assessment & Care Management","OP Care Purchasing (Spot Placements)","R5430"
"Wolverhampton City Council","http://opendatacommunities.org/id/metropolitan-district-council/wolverhampton","Beacon Centre For The Blind","BCI2444220161117","193.20","TPP - Day Care","190285796","18/11/2016","Older People Assessment & Care Management","OP Care Purchasing (Spot Placements)","R5430"
"Wolverhampton City Council","http://opendatacommunities.org/id/metropolitan-district-council/wolverhampton","Beacon Centre For The Blind","BCI2444220161117","96.60","TPP - Day Care","190285796","18/11/2016","Older People Assessment & Care Management","OP Care Purchasing (Spot Placements)","R5430"
"Wolverhampton City Council","http://opendatacommunities.org/id/metropolitan-district-council/wolverhampton","Beacon Centre For The Blind","BCI2444220161117","96.60","TPP - Day Care","190285796","18/11/2016","Older People Assessment & Care Management","OP Care Purchasing (Spot Placements)","R5430"
"Wolverhampton City Council","http://opendatacommunities.org/id/metropolitan-district-council/wolverhampton","Beacon Centre For The Blind","BCI2444220161117","72.45","TPP - Day Care","190285796","18/11/2016","Older People Assessment & Care Management","OP Care Purchasing (Spot Placements)","R5430"
"Wolverhampton City Council","http://opendatacommunities.org/id/metropolitan-district-council/wolverhampton","Beacon Centre For The Blind","BCI2444220161117","24.15","TPP - Day Care","190285796","18/11/2016","Older People Assessment & Care Management","OP Care Purchasing (Spot Placements)","R5430"
"Wolverhampton City Council","http://opendatacommunities.org/id/metropolitan-district-council/wolverhampton","Beacon Centre For The Blind","BCI2444220161117","96.60","TPP - Day Care","190285796","18/11/2016","Older People Assessment & Care Management","OP Care Purchasing (Spot Placements)","R5430"
"Wolverhampton City Council","http://opendatacommunities.org/id/metropolitan-district-council/wolverhampton","Beacon Centre For The Blind","BCI2444220161117","96.60","TPP - Day Care","190285796","18/11/2016","Older People Assessment & Care Management","OP Care Purchasing (Spot Placements)","R5430"
"Wolverhampton City Council","http://opendatacommunities.org/id/metropolitan-district-council/wolverhampton","Beacon Centre For The Blind","BCI2444220161117","96.60","TPP - Day Care","190285796","18/11/2016","Older People Assessment & Care Management","OP Care Purchasing (Spot Placements)","R5430"
"Wolverhampton City Council","http://opendatacommunities.org/id/metropolitan-district-council/wolverhampton","Beacon Centre For The Blind","BCI2444220161117","48.30","TPP - Day Care","190285796","18/11/2016","Older People Assessment & Care Management","OP Care Purchasing (Spot Placements)","R5430"
"Wolverhampton City Council","http://opendatacommunities.org/id/metropolitan-district-council/wolverhampton","Beacon Centre For The Blind","BCI2444220161117","96.60","TPP - Day Care","190285796","18/11/2016","Older People Assessment & Care Management","OP Care Purchasing (Spot Placements)","R5430"
"Wolverhampton City Council","http://opendatacommunities.org/id/metropolitan-district-council/wolverhampton","Beacon Centre For The Blind","BCI2444220161117","72.45","TPP - Day Care","190285796","18/11/2016","Older People Assessment & Care Management","OP Care Purchasing (Spot Placements)","R5430"
"Wolverhampton City Council","http://opendatacommunities.org/id/metropolitan-district-council/wolverhampton","Beacon Centre For The Blind","BCI2444220161117","96.60","TPP - Day Care","190285796","18/11/2016","Older People Assessment & Care Management","OP Care Purchasing (Spot Placements)","R5430"
"Wolverhampton City Council","http://opendatacommunities.org/id/metropolitan-district-council/wolverhampton","Beacon Centre For The Blind","BCI2444220161117","72.45","TPP - Day Care","190285796","18/11/2016","Older People Assessment & Care Management","OP Care Purchasing (Spot Placements)","R5430"
"Wolverhampton City Council","http://opendatacommunities.org/id/metropolitan-district-council/wolverhampton","Beacon Centre For The Blind","BCI2444220161117","48.30","TPP - Day Care","190285796","18/11/2016","Older People Assessment & Care Management","OP Care Purchasing (Spot Placements)","R5430"
"Wolverhampton City Council","http://opendatacommunities.org/id/metropolitan-district-council/wolverhampton","Beacon Centre For The Blind","BCI2444220161117","96.60","TPP - Day Care","190285796","18/11/2016","Older People Assessment & Care Management","OP Care Purchasing (Spot Placements)","R5430"
"Wolverhampton City Council","http://opendatacommunities.org/id/metropolitan-district-council/wolverhampton","Beacon Centre For The Blind","BCI2444220161117","96.60","TPP - Day Care","190285796","18/11/2016","Older People Assessment & Care Management","OP Care Purchasing (Spot Placements)","R5430"
"Wolverhampton City Council","http://opendatacommunities.org/id/metropolitan-district-council/wolverhampton","Beacon Centre For The Blind","BCI2444220161117","96.60","TPP - Day Care","190285796","18/11/2016","Older People Assessment & Care Management","OP Care Purchasing (Spot Placements)","R5430"
"Wolverhampton City Council","http://opendatacommunities.org/id/metropolitan-district-council/wolverhampton","Beacon Centre For The Blind","BCI2444220161117","96.60","TPP - Day Care","190285796","18/11/2016","Older People Assessment & Care Management","OP Care Purchasing (Spot Placements)","R5430"
"Wolverhampton City Council","http://opendatacommunities.org/id/metropolitan-district-council/wolverhampton","Beacon Centre For The Blind","BCI2444220161117","169.05","TPP - Day Care","190285796","18/11/2016","Older People Assessment & Care Management","OP Care Purchasing (Spot Placements)","R5430"
"Wolverhampton City Council","http://opendatacommunities.org/id/metropolitan-district-council/wolverhampton","Beacon Centre For The Blind","BCI2444220161117","193.20","TPP - Day Care","190285796","18/11/2016","Older People Assessment & Care Management","OP Care Purchasing (Spot Placements)","R5430"
"Wolverhampton City Council","http://opendatacommunities.org/id/metropolitan-district-council/wolverhampton","Beacon Centre For The Blind","BCI2444220161117","24.15","TPP - Day Care","190285796","18/11/2016","Older People Assessment & Care Management","OP Care Purchasing (Spot Placements)","R5430"
"Wolverhampton City Council","http://opendatacommunities.org/id/metropolitan-district-council/wolverhampton","Beacon Centre For The Blind","BCI2444220161117","193.20","TPP - Day Care","190285796","18/11/2016","Older People Assessment & Care Management","OP Care Purchasing (Spot Placements)","R5430"
"Wolverhampton City Council","http://opendatacommunities.org/id/metropolitan-district-council/wolverhampton","Beacon Centre For The Blind","BCI2444220161117","193.20","TPP - Day Care","190285796","18/11/2016","Older People Assessment & Care Management","OP Care Purchasing (Spot Placements)","R5430"
"Wolverhampton City Council","http://opendatacommunities.org/id/metropolitan-district-council/wolverhampton","Beacon Centre For The Blind","BCI2444220161117","96.60","TPP - Day Care","190285796","18/11/2016","Older People Assessment & Care Management","OP Care Purchasing (Spot Placements)","R5430"
"Wolverhampton City Council","http://opendatacommunities.org/id/metropolitan-district-council/wolverhampton","Beacon Centre For The Blind","BCI2444220161117","169.05","TPP - Day Care","190285796","18/11/2016","Older People Assessment & Care Management","OP Care Purchasing (Spot Placements)","R5430"
"Wolverhampton City Council","http://opendatacommunities.org/id/metropolitan-district-council/wolverhampton","Beacon Centre For The Blind","BCI2444220161117","72.45","TPP - Day Care","190285796","18/11/2016","Older People Assessment & Care Management","OP Care Purchasing (Spot Placements)","R5430"
"Wolverhampton City Council","http://opendatacommunities.org/id/metropolitan-district-council/wolverhampton","Beacon Centre For The Blind","BCI2444220161117","193.20","TPP - Day Care","190285796","18/11/2016","Older People Assessment & Care Management","OP Care Purchasing (Spot Placements)","R5430"
"Wolverhampton City Council","http://opendatacommunities.org/id/metropolitan-district-council/wolverhampton","Beacon Centre For The Blind","BCI2444220161117","48.30","TPP - Day Care","190285796","18/11/2016","Older People Assessment & Care Management","OP Care Purchasing (Spot Placements)","R5430"
"Wolverhampton City Council","http://opendatacommunities.org/id/metropolitan-district-council/wolverhampton","Beacon Centre For The Blind","BCI2444220161117","48.30","TPP - Day Care","190285796","18/11/2016","Older People Assessment & Care Management","OP Care Purchasing (Spot Placements)","R5430"
"Wolverhampton City Council","http://opendatacommunities.org/id/metropolitan-district-council/wolverhampton","Beacon Centre For The Blind","BCI2444220161117","24.15","TPP - Day Care","190285796","18/11/2016","Older People Assessment & Care Management","OP Care Purchasing (Spot Placements)","R5430"
"Wolverhampton City Council","http://opendatacommunities.org/id/metropolitan-district-council/wolverhampton","Beacon Centre For The Blind","BCI2444220161117","48.30","TPP - Day Care","190285796","18/11/2016","Older People Assessment & Care Management","OP Care Purchasing (Spot Placements)","R5430"
"Wolverhampton City Council","http://opendatacommunities.org/id/metropolitan-district-council/wolverhampton","Beacon Centre For The Blind","BCI2444220161117","48.30","TPP - Day Care","190285796","18/11/2016","Older People Assessment & Care Management","OP Care Purchasing (Spot Placements)","R5430"
"Wolverhampton City Council","http://opendatacommunities.org/id/metropolitan-district-council/wolverhampton","Beacon Centre For The Blind","BCI2444220161117","193.20","TPP - Day Care","190285796","18/11/2016","Older People Assessment & Care Management","OP Care Purchasing (Spot Placements)","R5430"
"Wolverhampton City Council","http://opendatacommunities.org/id/metropolitan-district-council/wolverhampton","Beacon Centre For The Blind","BCI2444220161117","48.30","TPP - Day Care","190285796","18/11/2016","Older People Assessment & Care Management","OP Care Purchasing (Spot Placements)","R5430"
"Wolverhampton City Council","http://opendatacommunities.org/id/metropolitan-district-council/wolverhampton","Beacon Centre For The Blind","BCI2444220161117","96.60","TPP - Day Care","190285796","18/11/2016","Older People Assessment & Care Management","OP Care Purchasing (Spot Placements)","R5430"
"Wolverhampton City Council","http://opendatacommunities.org/id/metropolitan-district-council/wolverhampton","Beacon Centre For The Blind","BCI2444220161117","193.20","TPP - Day Care","190285796","18/11/2016","Older People Assessment & Care Management","OP Care Purchasing (Spot Placements)","R5430"
"Wolverhampton City Council","http://opendatacommunities.org/id/metropolitan-district-council/wolverhampton","Beacon Centre For The Blind","BCI2444220161117","48.30","TPP - Day Care","190285796","18/11/2016","Older People Assessment & Care Management","OP Care Purchasing (Spot Placements)","R5430"
"Wolverhampton City Council","http://opendatacommunities.org/id/metropolitan-district-council/wolverhampton","Beacon Centre For The Blind","BCI2444220161117","169.05","TPP - Day Care","190285796","18/11/2016","Older People Assessment & Care Management","OP Care Purchasing (Spot Placements)","R5430"
"Wolverhampton City Council","http://opendatacommunities.org/id/metropolitan-district-council/wolverhampton","Beacon Centre For The Blind","BCI2444220161117","24.15","TPP - Day Care","190285796","18/11/2016","Older People Assessment & Care Management","OP Care Purchasing (Spot Placements)","R5430"
"Wolverhampton City Council","http://opendatacommunities.org/id/metropolitan-district-council/wolverhampton","Beacon Centre For The Blind","BCI2444220161117","24.15","TPP - Day Care","190285796","18/11/2016","Older People Assessment & Care Management","OP Care Purchasing (Spot Placements)","R5430"
"Wolverhampton City Council","http://opendatacommunities.org/id/metropolitan-district-council/wolverhampton","Beacon Centre For The Blind","03/11/2016  blueform","3,271.32","Bailiff Action","130143851","04/11/2016","Revenues & Benefits","Revenues","R9382"
"Wolverhampton City Council","http://opendatacommunities.org/id/metropolitan-district-council/wolverhampton","Beacon Centre For The Blind","03/11/2016 blue form vat only","1,077.09","Bailiff Action","130143853","04/11/2016","Revenues & Benefits","Revenues","R9382"
"Wolverhampton City Council","http://opendatacommunities.org/id/metropolitan-district-council/wolverhampton","Beacon Centre For The Blind","BCI2443720161103","72.45","TPP - Day Care","190281721","04/11/2016","Older People Assessment & Care Management","OP Care Purchasing (Spot Placements)","R5430"
"Wolverhampton City Council","http://opendatacommunities.org/id/metropolitan-district-council/wolverhampton","Beacon Centre For The Blind","BCI2443720161103","24.15","TPP - Day Care","190281721","04/11/2016","Older People Assessment & Care Management","OP Care Purchasing (Spot Placements)","R5430"
"Wolverhampton City Council","http://opendatacommunities.org/id/metropolitan-district-council/wolverhampton","Beacon Centre For The Blind","BCI2443720161103","72.45","TPP - Day Care","190281721","04/11/2016","Older People Assessment & Care Management","OP Care Purchasing (Spot Placements)","R5430"
"Wolverhampton City Council","http://opendatacommunities.org/id/metropolitan-district-council/wolverhampton","Beacon Centre For The Blind","BCI2443720161103","96.60","TPP - Day Care","190281721","04/11/2016","Older People Assessment & Care Management","OP Care Purchasing (Spot Placements)","R5430"
"Wolverhampton City Council","http://opendatacommunities.org/id/metropolitan-district-council/wolverhampton","Beacon Centre For The Blind","BCI2443720161103","96.60","TPP - Day Care","190281721","04/11/2016","Older People Assessment & Care Management","OP Care Purchasing (Spot Placements)","R5430"
"Wolverhampton City Council","http://opendatacommunities.org/id/metropolitan-district-council/wolverhampton","Beacon Centre For The Blind","BCI2443720161103","193.20","TPP - Day Care","190281721","04/11/2016","Older People Assessment & Care Management","OP Care Purchasing (Spot Placements)","R5430"
"Wolverhampton City Council","http://opendatacommunities.org/id/metropolitan-district-council/wolverhampton","Beacon Centre For The Blind","BCI2443720161103","96.60","TPP - Day Care","190281721","04/11/2016","Older People Assessment & Care Management","OP Care Purchasing (Spot Placements)","R5430"
"Wolverhampton City Council","http://opendatacommunities.org/id/metropolitan-district-council/wolverhampton","Beacon Centre For The Blind","BCI2443720161103","72.45","TPP - Day Care","190281721","04/11/2016","Older People Assessment & Care Management","OP Care Purchasing (Spot Placements)","R5430"
"Wolverhampton City Council","http://opendatacommunities.org/id/metropolitan-district-council/wolverhampton","Beacon Centre For The Blind","BCI2443720161103","169.05","TPP - Day Care","190281721","04/11/2016","Older People Assessment & Care Management","OP Care Purchasing (Spot Placements)","R5430"
"Wolverhampton City Council","http://opendatacommunities.org/id/metropolitan-district-council/wolverhampton","Beacon Centre For The Blind","BCI2443720161103","169.05","TPP - Day Care","190281721","04/11/2016","Older People Assessment & Care Management","OP Care Purchasing (Spot Placements)","R5430"
"Wolverhampton City Council","http://opendatacommunities.org/id/metropolitan-district-council/wolverhampton","Beacon Centre For The Blind","BCI2443720161103","24.15","TPP - Day Care","190281721","04/11/2016","Older People Assessment & Care Management","OP Care Purchasing (Spot Placements)","R5430"
"Wolverhampton City Council","http://opendatacommunities.org/id/metropolitan-district-council/wolverhampton","Beacon Centre For The Blind","BCI2443720161103","48.30","TPP - Day Care","190281721","04/11/2016","Older People Assessment & Care Management","OP Care Purchasing (Spot Placements)","R5430"
"Wolverhampton City Council","http://opendatacommunities.org/id/metropolitan-district-council/wolverhampton","Beacon Centre For The Blind","BCI2443720161103","48.30","TPP - Day Care","190281721","04/11/2016","Older People Assessment & Care Management","OP Care Purchasing (Spot Placements)","R5430"
"Wolverhampton City Council","http://opendatacommunities.org/id/metropolitan-district-council/wolverhampton","Beacon Centre For The Blind","BCI2443720161103","72.45","TPP - Day Care","190281721","04/11/2016","Older People Assessment & Care Management","OP Care Purchasing (Spot Placements)","R5430"
"Wolverhampton City Council","http://opendatacommunities.org/id/metropolitan-district-council/wolverhampton","Beacon Centre For The Blind","BCI2443720161103","144.90","TPP - Day Care","190281721","04/11/2016","Older People Assessment & Care Management","OP Care Purchasing (Spot Placements)","R5430"
"Wolverhampton City Council","http://opendatacommunities.org/id/metropolitan-district-council/wolverhampton","Beacon Centre For The Blind","BCI2443720161103","48.30","TPP - Day Care","190281721","04/11/2016","Older People Assessment & Care Management","OP Care Purchasing (Spot Placements)","R5430"
"Wolverhampton City Council","http://opendatacommunities.org/id/metropolitan-district-council/wolverhampton","Beacon Centre For The Blind","BCI2443720161103","193.20","TPP - Day Care","190281721","04/11/2016","Older People Assessment & Care Management","OP Care Purchasing (Spot Placements)","R5430"
"Wolverhampton City Council","http://opendatacommunities.org/id/metropolitan-district-council/wolverhampton","Beacon Centre For The Blind","BCI2443720161103","72.45","TPP - Day Care","190281721","04/11/2016","Older People Assessment & Care Management","OP Care Purchasing (Spot Placements)","R5430"
"Wolverhampton City Council","http://opendatacommunities.org/id/metropolitan-district-council/wolverhampton","Beacon Centre For The Blind","BCI2443720161103","265.65","TPP - Day Care","190281721","04/11/2016","Older People Assessment & Care Management","OP Care Purchasing (Spot Placements)","R5430"
"Wolverhampton City Council","http://opendatacommunities.org/id/metropolitan-district-council/wolverhampton","Beacon Centre For The Blind","BCI2443720161103","48.30","TPP - Day Care","190281721","04/11/2016","Older People Assessment & Care Management","OP Care Purchasing (Spot Placements)","R5430"
"Wolverhampton City Council","http://opendatacommunities.org/id/metropolitan-district-council/wolverhampton","Beacon Centre For The Blind","BCI2443720161103","193.20","TPP - Day Care","190281721","04/11/2016","Older People Assessment & Care Management","OP Care Purchasing (Spot Placements)","R5430"
"Wolverhampton City Council","http://opendatacommunities.org/id/metropolitan-district-council/wolverhampton","Beacon Centre For The Blind","BCI2394720161103","96.60","TPP - Day Care","190281720","04/11/2016","Older People Assessment & Care Management","OP Care Purchasing (Spot Placements)","R5430"
"Wolverhampton City Council","http://opendatacommunities.org/id/metropolitan-district-council/wolverhampton","Beacon Centre For The Blind","BCI2394720161103","96.60","TPP - Day Care","190281720","04/11/2016","Older People Assessment & Care Management","OP Care Purchasing (Spot Placements)","R5430"
"Wolverhampton City Council","http://opendatacommunities.org/id/metropolitan-district-council/wolverhampton","Beacon Centre For The Blind","BCI2394720161103","48.30","TPP - Day Care","190281720","04/11/2016","Older People Assessment & Care Management","OP Care Purchasing (Spot Placements)","R5430"
"Wolverhampton City Council","http://opendatacommunities.org/id/metropolitan-district-council/wolverhampton","Beacon Centre For The Blind","BCI2394720161103","120.75","TPP - Day Care","190281720","04/11/2016","Older People Assessment & Care Management","OP Care Purchasing (Spot Placements)","R5430"
"Wolverhampton City Council","http://opendatacommunities.org/id/metropolitan-district-council/wolverhampton","Beacon Centre For The Blind","BCI2394720161103","48.30","TPP - Day Care","190281720","04/11/2016","Older People Assessment & Care Management","OP Care Purchasing (Spot Placements)","R5430"
"Wolverhampton City Council","http://opendatacommunities.org/id/metropolitan-district-council/wolverhampton","Beacon Centre For The Blind","BCI2394720161103","96.60","TPP - Day Care","190281720","04/11/2016","Older People Assessment & Care Management","OP Care Purchasing (Spot Placements)","R5430"
"Wolverhampton City Council","http://opendatacommunities.org/id/metropolitan-district-council/wolverhampton","Beacon Centre For The Blind","BCI2394720161103","72.45","TPP - Day Care","190281720","04/11/2016","Older People Assessment & Care Management","OP Care Purchasing (Spot Placements)","R5430"
"Wolverhampton City Council","http://opendatacommunities.org/id/metropolitan-district-council/wolverhampton","Beacon Centre For The Blind","BCI2394720161103","72.45","TPP - Day Care","190281720","04/11/2016","Older People Assessment & Care Management","OP Care Purchasing (Spot Placements)","R5430"
"Wolverhampton City Council","http://opendatacommunities.org/id/metropolitan-district-council/wolverhampton","Beacon Centre For The Blind","BCI2394720161103","96.60","TPP - Day Care","190281720","04/11/2016","Older People Assessment & Care Management","OP Care Purchasing (Spot Placements)","R5430"
"Wolverhampton City Council","http://opendatacommunities.org/id/metropolitan-district-council/wolverhampton","Beacon Centre For The Blind","BCI2394720161103","120.75","TPP - Day Care","190281720","04/11/2016","Older People Assessment & Care Management","OP Care Purchasing (Spot Placements)","R5430"
"Wolverhampton City Council","http://opendatacommunities.org/id/metropolitan-district-council/wolverhampton","Beacon Centre For The Blind","BCI2394720161103","72.45","TPP - Day Care","190281720","04/11/2016","Older People Assessment & Care Management","OP Care Purchasing (Spot Placements)","R5430"
"Wolverhampton City Council","http://opendatacommunities.org/id/metropolitan-district-council/wolverhampton","Beacon Centre For The Blind","BCI2394720161103","265.65","TPP - Day Care","190281720","04/11/2016","Older People Assessment & Care Management","OP Care Purchasing (Spot Placements)","R5430"
"Wolverhampton City Council","http://opendatacommunities.org/id/metropolitan-district-council/wolverhampton","Beacon Centre For The Blind","BCI2394720161103","96.60","TPP - Day Care","190281720","04/11/2016","Older People Assessment & Care Management","OP Care Purchasing (Spot Placements)","R5430"
"Wolverhampton City Council","http://opendatacommunities.org/id/metropolitan-district-council/wolverhampton","Beacon Centre For The Blind","BCI2394720161103","289.80","TPP - Day Care","190281720","04/11/2016","Older People Assessment & Care Management","OP Care Purchasing (Spot Placements)","R5430"
"Wolverhampton City Council","http://opendatacommunities.org/id/metropolitan-district-council/wolverhampton","Beacon Centre For The Blind","BCI2394720161103","96.60","TPP - Day Care","190281720","04/11/2016","Older People Assessment & Care Management","OP Care Purchasing (Spot Placements)","R5430"
"Wolverhampton City Council","http://opendatacommunities.org/id/metropolitan-district-council/wolverhampton","Beacon Centre For The Blind","BCI2443920161103","950.00","TPP - Day Care","190281722","04/11/2016","Older People Assessment & Care Management","OP Care Purchasing (Spot Placements)","R5430"
"Wolverhampton City Council","http://opendatacommunities.org/id/metropolitan-district-council/wolverhampton","Beacon Centre For The Blind","BCI2443920161103","250.00","TPP - Day Care","190281722","04/11/2016","Older People Assessment & Care Management","OP Care Purchasing (Spot Placements)","R5430"
"Wolverhampton City Council","http://opendatacommunities.org/id/metropolitan-district-council/wolverhampton","Beacon Centre For The Blind","BCI2443920161103","350.00","TPP - Day Care","190281722","04/11/2016","Older People Assessment & Care Management","OP Care Purchasing (Spot Placements)","R5430"
"Wolverhampton City Council","http://opendatacommunities.org/id/metropolitan-district-council/wolverhampton","Beacon Centre For The Blind","BCI2443920161103","400.00","TPP - Day Care","190281722","04/11/2016","Older People Assessment & Care Management","OP Care Purchasing (Spot Placements)","R5430"
"Wolverhampton City Council","http://opendatacommunities.org/id/metropolitan-district-council/wolverhampton","Beacon Centre For The Blind","BCI2443920161103","400.00","TPP - Day Care","190281722","04/11/2016","Older People Assessment & Care Management","OP Care Purchasing (Spot Placements)","R5430"
"Wolverhampton City Council","http://opendatacommunities.org/id/metropolitan-district-council/wolverhampton","Beacon Centre For The Blind","BCI2443720161103","48.30","TPP - Day Care","190281721","04/11/2016","Older People Assessment & Care Management","OP Care Purchasing (Spot Placements)","R5430"
"Wolverhampton City Council","http://opendatacommunities.org/id/metropolitan-district-council/wolverhampton","Beacon Centre For The Blind","BCI2443720161103","96.60","TPP - Day Care","190281721","04/11/2016","Older People Assessment & Care Management","OP Care Purchasing (Spot Placements)","R5430"
"Wolverhampton City Council","http://opendatacommunities.org/id/metropolitan-district-council/wolverhampton","Beacon Centre For The Blind","BCI2443720161103","24.15","TPP - Day Care","190281721","04/11/2016","Older People Assessment & Care Management","OP Care Purchasing (Spot Placements)","R5430"
"Wolverhampton City Council","http://opendatacommunities.org/id/metropolitan-district-council/wolverhampton","Beacon Centre For The Blind","BCI2443720161103","72.45","TPP - Day Care","190281721","04/11/2016","Older People Assessment & Care Management","OP Care Purchasing (Spot Placements)","R5430"
"Wolverhampton City Council","http://opendatacommunities.org/id/metropolitan-district-council/wolverhampton","Beacon Centre For The Blind","BCI2443720161103","96.60","TPP - Day Care","190281721","04/11/2016","Older People Assessment & Care Management","OP Care Purchasing (Spot Placements)","R5430"
"Wolverhampton City Council","http://opendatacommunities.org/id/metropolitan-district-council/wolverhampton","Beacon Centre For The Blind","BCI2443720161103","48.30","TPP - Day Care","190281721","04/11/2016","Older People Assessment & Care Management","OP Care Purchasing (Spot Placements)","R5430"
"Wolverhampton City Council","http://opendatacommunities.org/id/metropolitan-district-council/wolverhampton","Beacon Centre For The Blind","BCI2443720161103","169.05","TPP - Day Care","190281721","04/11/2016","Older People Assessment & Care Management","OP Care Purchasing (Spot Placements)","R5430"
"Wolverhampton City Council","http://opendatacommunities.org/id/metropolitan-district-council/wolverhampton","Beacon Centre For The Blind","BCI2443720161103","169.05","TPP - Day Care","190281721","04/11/2016","Older People Assessment & Care Management","OP Care Purchasing (Spot Placements)","R5430"
"Wolverhampton City Council","http://opendatacommunities.org/id/metropolitan-district-council/wolverhampton","Beacon Centre For The Blind","BCI2443720161103","96.60","TPP - Day Care","190281721","04/11/2016","Older People Assessment & Care Management","OP Care Purchasing (Spot Placements)","R5430"
"Wolverhampton City Council","http://opendatacommunities.org/id/metropolitan-district-council/wolverhampton","Beacon Centre For The Blind","BCI2443720161103","144.90","TPP - Day Care","190281721","04/11/2016","Older People Assessment & Care Management","OP Care Purchasing (Spot Placements)","R5430"
"Wolverhampton City Council","http://opendatacommunities.org/id/metropolitan-district-council/wolverhampton","Beacon Centre For The Blind","BCI2443720161103","48.30","TPP - Day Care","190281721","04/11/2016","Older People Assessment & Care Management","OP Care Purchasing (Spot Placements)","R5430"
"Wolverhampton City Council","http://opendatacommunities.org/id/metropolitan-district-council/wolverhampton","Beacon Centre For The Blind","BCI2443720161103","169.05","TPP - Day Care","190281721","04/11/2016","Older People Assessment & Care Management","OP Care Purchasing (Spot Placements)","R5430"
"Wolverhampton City Council","http://opendatacommunities.org/id/metropolitan-district-council/wolverhampton","Beacon Centre For The Blind","BCI2443720161103","72.45","TPP - Day Care","190281721","04/11/2016","Older People Assessment & Care Management","OP Care Purchasing (Spot Placements)","R5430"
"Wolverhampton City Council","http://opendatacommunities.org/id/metropolitan-district-council/wolverhampton","Beacon Centre For The Blind","BCI2443720161103","96.60","TPP - Day Care","190281721","04/11/2016","Older People Assessment & Care Management","OP Care Purchasing (Spot Placements)","R5430"
"Wolverhampton City Council","http://opendatacommunities.org/id/metropolitan-district-council/wolverhampton","Beacon Centre For The Blind","BCI2443720161103","96.60","TPP - Day Care","190281721","04/11/2016","Older People Assessment & Care Management","OP Care Purchasing (Spot Placements)","R5430"
"Wolverhampton City Council","http://opendatacommunities.org/id/metropolitan-district-council/wolverhampton","Beacon Centre For The Blind","BCI2443720161103","96.60","TPP - Day Care","190281721","04/11/2016","Older People Assessment & Care Management","OP Care Purchasing (Spot Placements)","R5430"
"Wolverhampton City Council","http://opendatacommunities.org/id/metropolitan-district-council/wolverhampton","Beacon Centre For The Blind","BCI2443720161103","96.60","TPP - Day Care","190281721","04/11/2016","Older People Assessment & Care Management","OP Care Purchasing (Spot Placements)","R5430"
"Wolverhampton City Council","http://opendatacommunities.org/id/metropolitan-district-council/wolverhampton","Beacon Centre For The Blind","BCI2443720161103","120.75","TPP - Day Care","190281721","04/11/2016","Older People Assessment & Care Management","OP Care Purchasing (Spot Placements)","R5430"
"Wolverhampton City Council","http://opendatacommunities.org/id/metropolitan-district-council/wolverhampton","Beacon Centre For The Blind","BCI2443720161103","144.90","TPP - Day Care","190281721","04/11/2016","Older People Assessment & Care Management","OP Care Purchasing (Spot Placements)","R5430"
"Wolverhampton City Council","http://opendatacommunities.org/id/metropolitan-district-council/wolverhampton","Beacon Centre For The Blind","BCI2394720161103","144.90","TPP - Day Care","190281720","04/11/2016","Older People Assessment & Care Management","OP Care Purchasing (Spot Placements)","R5430"
